Workbook

Sheet Bilan-Résultat
B2: BILAN
B3: ACTIF | E3: PASSIF
B4: ACTIF IMMOBILISE | D4: =SUM(D6:D8) -> 122700 | E4: CAPITAUX PROPRES | G4: =SUM(G6:G7) -> 59500
B6: Immobilisations Incorporelles | D6: =SUM('Document 1:Document 15'!D45) -> 0 | E6: Capital | G6: =SUM('Document 1:Document 15'!G45) -> 50000
B7: Immobilisations Corporelles | D7: =SUM('Document 1:Document 15'!D46) -> 122700 | E7: Résultat | G7: =IF(AND(D31="",G31=""),"",IF(D31="",-G31,D31)) -> 9500
B8: Immobilisations Financières | D8: =SUM('Document 1:Document 15'!D47) -> 0
B10: ACTIF CIRCULANT | D10: =SUM(D12:D14) -> 19240 | E10: DETTES | G10: =SUM(G12:G13) -> 82440
B12: Stocks | D12: =SUM('Document 1:Document 15'!D51) -> 0 | E12: Emprunts | G12: =SUM('Document 1:Document 15'!G51) -> 80000
B13: Créances | D13: =SUM('Document 1:Document 15'!D52) -> 0 | E13: Fournisseurs | G13: =SUM('Document 1:Document 15'!G52) -> 2440
B14: Disponibilités | D14: =SUM('Document 1:Document 15'!D53) -> 19240
B16: TOTAUX | D16: =D4+D10 -> 141940 | E16: TOTAUX | G16: =G10+G4 -> 141940
B19: COMPTE DE RESULTAT
B20: CHARGES | E20: PRODUITS
B21: CHARGES EXPLOITATION | D21: =SUM(D23:D25) -> 6160 | E21: PRODUITS EXPLOITATION | G21: =SUM(G23) -> 15660
B23: Achats March | D23: =SUM('Document 1:Document 15'!D63) -> 0 | E23: Vente ou prestation de service | G23: =SUM('Document 1:Document 15'!G63) -> 15660
B24: Autres Charges externes | D24: =SUM('Document 1:Document 15'!D64) -> 6160
B25: Dotations aux amortissements | D25: =SUM('Document 1:Document 15'!D65) -> 0
B27: CHARGES FINANCIERES | D27: =SUM('Document 1:Document 15'!D67) -> 0 | E27: PRODUITS FINANCIERS | G27: =SUM('Document 1:Document 15'!G67) -> 0
B29: CHARGES EXCEPTIONNELLES | D29: =SUM('Document 1:Document 15'!D69) -> 0 | E29: PRODUITS EXCEPTIONNELS | G29: =SUM('Document 1:Document 15'!G69) -> 0
B30: Sous Total | D30: =D21+D27+D29 -> 6160 | E30: Sous Total | G30: =G21+G27+G29 -> 15660
B31: RESULTAT | C31: (Bénéfice) | D31: =IF(G30-D30>0,G30-D30,"") -> 9500 | E31: RESULTAT | F31: (Perte) | G31: =IF(D30-G30>0,D30-G30,"") -> 
B32: TOTAUX | D32: =SUM(D31,D30) -> 15660 | E32: TOTAUX | G32: =SUM(G31,G30) -> 15660

Sheet Document 1
H1: Effacer les données saisies
B2: Opération 1 | C2: Création de l'entreprise
B4: Document 1 | C4: Statuts
B7: 1. Analyser l’opération suivant une démarche pédagogique choisie (Emploi/Ressource ou Origine/Destination).
B9: Destination/Emploi | F9: Origine/Ressources
B10: Acquisition d'un terrain Augmentation de l'avoir en banque | D10: Montant | F10: Apport en capital des associés
D11: 50000
B13: 2. Procéder à l’enregistrement comptable correspondant sur bordereau de saisie.
B15: Bordereau de saisie
B16: Dates | C16: Comptes | D16: Intitulés | F16: Débit | G16: Crédit
B17: 2011-04-01 | C17: 211 | D17: =IF(C17="","",VLOOKUP(C17,Comptes,2,FALSE)) -> Terrains | F17: 30000
C18: 512 | D18: =IF(C18="","",VLOOKUP(C18,Comptes,2,FALSE)) -> Banques | E18: =IF(D18="","",VLOOKUP(D18,Comptes,2,FALSE)) ->  | F18: 20000
C19: 401 | D19: Fournisseurs | G19: 50000
B21: Totaux | F21: =SUM(F17:F20) -> 50000 | G21: =SUM(G17:G20) -> 50000
B23: 3. Effectuer le report dans les comptes de l’entreprise.
B25: Compte | C25: =C17 -> 211 | E25: Compte | F25: =C18 -> 512
B26: Débit | C26: Crédit | E26: Débit | F26: Crédit
B27: =F17 -> 30000 | C27: =G17 -> 0 | E27: =F18 -> 20000 | F27: =G18 -> 0
B30: =IF(SUM(B27:B29)-SUM(C27:C29)>0,"Solde Débiteur : ",IF(SUM(B27:B29)-SUM(C27:C29)<0,"Solde créditeur : ","")) -> Solde Débiteur : | C30: =IF((SUM(B27:B29)-SUM(C27:C29))>0,SUM(B27:B29)-SUM(C27:C29),-(SUM(B27:B29)-SUM(C27:C29))) -> 30000 | E30: =IF(SUM(E27:E29)-SUM(F27:F29)>0,"Solde Débiteur : ",IF(SUM(E27:E29)-SUM(F27:F29)<0,"Solde créditeur : ","")) -> Solde Débiteur : | F30: =IF((SUM(E27:E29)-SUM(F27:F29))>0,SUM(E27:E29)-SUM(F27:F29),-(SUM(E27:E29)-SUM(F27:F29))) -> 20000
B32: Compte | C32: =C19 -> 401 | E32: Compte | F32: =C20 -> 0
B33: Débit | C33: Crédit | E33: Débit | F33: Crédit
B34: =F19 -> 0 | C34: =G19 -> 50000 | E34: =F20 -> 0
B37: =IF(SUM(B34:B36)-SUM(C34:C36)>0,"Solde Débiteur : ",IF(SUM(B34:B36)-SUM(C34:C36)<0,"Solde créditeur : ","")) -> Solde créditeur : | C37: =IF((SUM(B33:B36)-SUM(C33:C36))>0,SUM(B33:B36)-SUM(C33:C36),-(SUM(B33:B36)-SUM(C33:C36))) -> 50000 | E37: =IF(SUM(E34:E36)-SUM(F34:F36)>0,"Solde Débiteur : ",IF(SUM(E34:E36)-SUM(F34:F36)<0,"Solde créditeur : ","")) ->  | F37: =IF((SUM(E33:E36)-SUM(F33:F36))>0,SUM(E33:E36)-SUM(F33:F36),-(SUM(E33:E36)-SUM(F33:F36))) -> 0
B39: 4. Evaluer les conséquences sur le patrimoine de l’entreprise en présentant son bilan après l'opération.
B41: BILAN
B42: ACTIF | E42: PASSIF
B43: ACTIF IMMOBILISE | D43: =SUM(D45:D47) -> 30000 | E43: CAPITAUX PROPRES | G43: =SUM(G45:G46) -> 50000
B45: Immobilisations Incorporelles | E45: Capital | G45: 50000
B46: Immobilisations Corporelles | D46: 30000 | E46: Résultat | G46: =IF(AND(D72="",G72=""),"",IF(D72="",-G72,D72)) -> 
B47: Immobilisations Financières
B49: ACTIF CIRCULANT | D49: =SUM(D51:D53) -> 20000 | E49: DETTES | G49: =SUM(G51:G52) -> 0
B51: Stocks | E51: Emprunts
B52: Créances | E52: Fournisseurs
B53: Disponibilités | D53: 20000
B55: TOTAUX | D55: =D43+D49 -> 50000 | E55: TOTAUX | G55: =G43+G49 -> 50000
B57: 5. Evaluer les conséquences sur l'activité de l’entreprise en présentant son compte de résultat après l'opération.
B59: COMPTE DE RESULTAT
B60: CHARGES | E60: PRODUITS
B61: CHARGES EXPLOITATION | D61: =SUM(D63:D65) -> 0 | E61: PRODUITS EXPLOITATION | G61: =G63 -> 0
B63: Achats de marchandises | E63: Vente ou prestation de service
B64: Autres charges externes
B65: Dotations aux amortissements
B67: CHARGES FINANCIERES | E67: PRODUITS FINANCIERS
B70: CHARGES EXCEPTIONNELLES | E70: PRODUITS EXCEPTIONNELS
B71: Sous Total | D71: =D61+D67+D70 -> 0 | E71: Sous Total | G71: =G61+G67+G70 -> 0
B72: RESULTAT | C72: (Bénéfice) | D72: =IF(G71-D71>0,G71-D71,"") ->  | E72: RESULTAT | F72: (Perte) | G72: =IF(D71-G71>0,D71-G71,"") -> 
B73: TOTAUX | D73: =SUM(D72,D71) -> 0 | E73: TOTAUX | G73: =SUM(G72,G71) -> 0

Sheet Document 2
B2: Opération 2 | C2: Souscription d'un emprunt
B4: Document 2 | C4: Avis de crédit et tableau de remboursement d'emprunt
B7: 1. Analyser l’opération suivant une démarche pédagogique choisie (Emploi/Ressource ou Origine/Destination).
B9: Destination/Emploi | F9: Origine/Ressources
B10: Augmentation de l'avoir en banque | D10: Montant | F10: Augmentation des dettes financières
D11: 80000
B13: 2. Procéder à l’enregistrement comptable correspondant sur bordereau de saisie.
B15: Bordereau de saisie
B16: Dates | C16: Comptes | D16: Intitulés | F16: Débit | G16: Crédit
B17: 2011-04-02 | C17: 512 | D17: =IF(C17="","",VLOOKUP(C17,Comptes,2,FALSE)) -> Banques | F17: 80000
C18: 164 | D18: Emprunts auprès des établissements de crédit | G18: 80000
B21: Totaux | F21: =SUM(F17:F20) -> 80000 | G21: =SUM(G17:G20) -> 80000
B23: 3. Effectuer le report dans les comptes de l’entreprise.
B25: Compte | C25: =C17 -> 512 | E25: Compte | F25: =C18 -> 164
B26: Débit | C26: Crédit | E26: Débit | F26: Crédit
B27: =F17 -> 80000 | C27: =G17 -> 0 | E27: =F18 -> 0 | F27: =G18 -> 80000
B30: =IF(SUM(B27:B29)-SUM(C27:C29)>0,"Solde Débiteur : ",IF(SUM(B27:B29)-SUM(C27:C29)<0,"Solde créditeur : ","")) -> Solde Débiteur : | C30: =IF((SUM(B27:B29)-SUM(C27:C29))>0,SUM(B27:B29)-SUM(C27:C29),-(SUM(B27:B29)-SUM(C27:C29))) -> 80000 | E30: =IF(SUM(E27:E29)-SUM(F27:F29)>0,"Solde Débiteur : ",IF(SUM(E27:E29)-SUM(F27:F29)<0,"Solde créditeur : ","")) -> Solde créditeur : | F30: =IF((SUM(E27:E29)-SUM(F27:F29))>0,SUM(E27:E29)-SUM(F27:F29),-(SUM(E27:E29)-SUM(F27:F29))) -> 80000
B32: Compte | C32: =C19 -> 0 | E32: Compte | F32: =C20 -> 0
B33: Débit | C33: Crédit | E33: Débit | F33: Crédit
B34: =F19 -> 0 | C34: =G19 -> 0 | E34: =F20 -> 0
B37: =IF(SUM(B34:B36)-SUM(C34:C36)>0,"Solde Débiteur : ",IF(SUM(B34:B36)-SUM(C34:C36)<0,"Solde créditeur : ","")) ->  | C37: =IF((SUM(B33:B36)-SUM(C33:C36))>0,SUM(B33:B36)-SUM(C33:C36),-(SUM(B33:B36)-SUM(C33:C36))) -> 0 | E37: =IF(SUM(E34:E36)-SUM(F34:F36)>0,"Solde Débiteur : ",IF(SUM(E34:E36)-SUM(F34:F36)<0,"Solde créditeur : ","")) ->  | F37: =IF((SUM(E33:E36)-SUM(F33:F36))>0,SUM(E33:E36)-SUM(F33:F36),-(SUM(E33:E36)-SUM(F33:F36))) -> 0
B39: 4. Evaluer les conséquences sur le patrimoine de l’entreprise en présentant son bilan après l'opération.
B41: BILAN
B42: ACTIF | E42: PASSIF
B43: ACTIF IMMOBILISE | D43: =SUM(D45:D47) -> 0 | E43: CAPITAUX PROPRES | G43: =SUM(G45:G46) -> 0
B45: Immobilisations Incorporelles | E45: Capital
B46: Immobilisations Corporelles | E46: Résultat | G46: =IF(AND(D72="",G72=""),"",IF(D72="",-G72,D72)) -> 
B47: Immobilisations Financières
B49: ACTIF CIRCULANT | D49: =SUM(D51:D53) -> 80000 | E49: DETTES | G49: =SUM(G51:G52) -> 80000
B51: Stocks | E51: Emprunts | G51: 80000
B52: Créances | E52: Fournisseurs
B53: Disponibilités | D53: 80000
B55: TOTAUX | D55: =D43+D49 -> 80000 | E55: TOTAUX | G55: =G43+G49 -> 80000
B57: 5. Evaluer les conséquences sur l'activité de l’entreprise en présentant son compte de résultat après l'opération.
B59: COMPTE DE RESULTAT
B60: CHARGES | E60: PRODUITS
B61: CHARGES EXPLOITATION | D61: =SUM(D63:D65) -> 0 | E61: PRODUITS EXPLOITATION | G61: =G63 -> 0
B63: Achats de marchandises | E63: Vente ou prestation de service
B64: Autres charges externes
B65: Dotations aux amortissements
B67: CHARGES FINANCIERES | E67: PRODUITS FINANCIERS
B70: CHARGES EXCEPTIONNELLES | E70: PRODUITS EXCEPTIONNELS
B71: Sous Total | D71: =D61+D67+D70 -> 0 | E71: Sous Total | G71: =G61+G67+G70 -> 0
B72: RESULTAT | C72: (Bénéfice) | D72: =IF(G71-D71>0,G71-D71,"") ->  | E72: RESULTAT | F72: (Perte) | G72: =IF(D71-G71>0,D71-G71,"") -> 
B73: TOTAUX | D73: =SUM(D72,D71) -> 0 | E73: TOTAUX | G73: =SUM(G72,G71) -> 0

Sheet Document 3
B2: Opération 3 | C2: Réception d'un devis
B4: Document 3 | C4: Devis du fournisseur TRAVAUX 05
B7: 1. Analyser l’opération suivant une démarche pédagogique choisie (Emploi/Ressource ou Origine/Destination).
B9: Destination/Emploi | F9: Origine/Ressources
D10: Montant
B13: 2. Procéder à l’enregistrement comptable correspondant sur bordereau de saisie.
B15: Bordereau de saisie
B16: Dates | C16: Comptes | D16: Intitulés | F16: Débit | G16: Crédit
D17: =IF(C17="","",VLOOKUP(C17,Comptes,2,FALSE)) -> 
B21: Totaux | F21: =SUM(F17:F20) -> 0 | G21: =SUM(G17:G20) -> 0
B23: 3. Effectuer le report dans les comptes de l’entreprise.
B25: Compte | C25: =C17 -> 0 | E25: Compte | F25: =C18 -> 0
B26: Débit | C26: Crédit | E26: Débit | F26: Crédit
B27: =F17 -> 0 | C27: =G17 -> 0 | E27: =F18 -> 0 | F27: =G18 -> 0
B30: =IF(SUM(B27:B29)-SUM(C27:C29)>0,"Solde Débiteur : ",IF(SUM(B27:B29)-SUM(C27:C29)<0,"Solde créditeur : ","")) ->  | C30: =IF((SUM(B27:B29)-SUM(C27:C29))>0,SUM(B27:B29)-SUM(C27:C29),-(SUM(B27:B29)-SUM(C27:C29))) -> 0 | E30: =IF(SUM(E27:E29)-SUM(F27:F29)>0,"Solde Débiteur : ",IF(SUM(E27:E29)-SUM(F27:F29)<0,"Solde créditeur : ","")) ->  | F30: =IF((SUM(E27:E29)-SUM(F27:F29))>0,SUM(E27:E29)-SUM(F27:F29),-(SUM(E27:E29)-SUM(F27:F29))) -> 0
B32: Compte | C32: =C19 -> 0 | E32: Compte | F32: =C20 -> 0
B33: Débit | C33: Crédit | E33: Débit | F33: Crédit
B34: =F19 -> 0 | C34: =G19 -> 0 | E34: =F20 -> 0
B37: =IF(SUM(B34:B36)-SUM(C34:C36)>0,"Solde Débiteur : ",IF(SUM(B34:B36)-SUM(C34:C36)<0,"Solde créditeur : ","")) ->  | C37: =IF((SUM(B33:B36)-SUM(C33:C36))>0,SUM(B33:B36)-SUM(C33:C36),-(SUM(B33:B36)-SUM(C33:C36))) -> 0 | E37: =IF(SUM(E34:E36)-SUM(F34:F36)>0,"Solde Débiteur : ",IF(SUM(E34:E36)-SUM(F34:F36)<0,"Solde créditeur : ","")) ->  | F37: =IF((SUM(E33:E36)-SUM(F33:F36))>0,SUM(E33:E36)-SUM(F33:F36),-(SUM(E33:E36)-SUM(F33:F36))) -> 0
B39: 4. Evaluer les conséquences sur le patrimoine de l’entreprise en présentant son bilan après l'opération.
B41: BILAN
B42: ACTIF | E42: PASSIF
B43: ACTIF IMMOBILISE | D43: =SUM(D45:D47) -> 0 | E43: CAPITAUX PROPRES | G43: =SUM(G45:G46) -> 0
B45: Immobilisations Incorporelles | E45: Capital
B46: Immobilisations Corporelles | E46: Résultat | G46: =IF(AND(D72="",G72=""),"",IF(D72="",-G72,D72)) -> 
B47: Immobilisations Financières
B49: ACTIF CIRCULANT | D49: =SUM(D51:D53) -> 0 | E49: DETTES | G49: =SUM(G51:G52) -> 0
B51: Stocks | E51: Emprunts
B52: Créances | E52: Fournisseurs
B53: Disponibilités
B55: TOTAUX | D55: =D43+D49 -> 0 | E55: TOTAUX | G55: =G43+G49 -> 0
B57: 5. Evaluer les conséquences sur l'activité de l’entreprise en présentant son compte de résultat après l'opération.
B59: COMPTE DE RESULTAT
B60: CHARGES | E60: PRODUITS
B61: CHARGES EXPLOITATION | D61: =SUM(D63:D65) -> 0 | E61: PRODUITS EXPLOITATION | G61: =G63 -> 0
B63: Achats de marchandises | E63: Vente ou prestation de service
B64: Autres charges externes
B65: Dotations aux amortissements
B67: CHARGES FINANCIERES | E67: PRODUITS FINANCIERS
B70: CHARGES EXCEPTIONNELLES | E70: PRODUITS EXCEPTIONNELS
B71: Sous Total | D71: =D61+D67+D70 -> 0 | E71: Sous Total | G71: =G61+G67+G70 -> 0
B72: RESULTAT | C72: (Bénéfice) | D72: =IF(G71-D71>0,G71-D71,"") ->  | E72: RESULTAT | F72: (Perte) | G72: =IF(D71-G71>0,D71-G71,"") -> 
B73: TOTAUX | D73: =SUM(D72,D71) -> 0 | E73: TOTAUX | G73: =SUM(G72,G71) -> 0

Sheet Document 4-1-2
B2: Opération 4 | C2: Travaux d'aménagement
B4: Document 4-1-2 | C4: Facture du fournisseur TRAVAUX 05 - Chèque n° 001 sur la Banque des Alpes
B7: 1. Analyser l’opération suivant une démarche pédagogique choisie (Emploi/Ressource ou Origine/Destination).
B9: Destination/Emploi | F9: Origine/Ressources
B10: Travaux d'aménagement | D10: Montant | F10: Diminution de l'avoir en banque Augmentation des dettes fournisseurs
D11: 90000
B13: 2. Procéder à l’enregistrement comptable correspondant sur bordereau de saisie.
B15: Bordereau de saisie
B16: Dates | C16: Comptes | D16: Intitulés | F16: Débit | G16: Crédit
B17: 2011-04-30 | C17: 213 | D17: =IF(C17="","",VLOOKUP(C17,Comptes,2,FALSE)) -> Constructions | F17: 90000
C18: 404 | D18: Fournisseurs d'immobilisations | G18: 60000
C19: 512 | D19: Banques | G19: 30000
G20: ,
B21: Totaux | F21: =SUM(F17:F20) -> 90000 | G21: =SUM(G17:G20) -> 90000
B23: 3. Effectuer le report dans les comptes de l’entreprise.
B25: Compte | C25: =C17 -> 213 | E25: Compte | F25: =C18 -> 404
B26: Débit | C26: Crédit | E26: Débit | F26: Crédit
B27: =F17 -> 90000 | C27: =G17 -> 0 | E27: =F18 -> 0 | F27: =G18 -> 60000
B30: =IF(SUM(B27:B29)-SUM(C27:C29)>0,"Solde Débiteur : ",IF(SUM(B27:B29)-SUM(C27:C29)<0,"Solde créditeur : ","")) -> Solde Débiteur : | C30: =IF((SUM(B27:B29)-SUM(C27:C29))>0,SUM(B27:B29)-SUM(C27:C29),-(SUM(B27:B29)-SUM(C27:C29))) -> 90000 | E30: =IF(SUM(E27:E29)-SUM(F27:F29)>0,"Solde Débiteur : ",IF(SUM(E27:E29)-SUM(F27:F29)<0,"Solde créditeur : ","")) -> Solde créditeur : | F30: =IF((SUM(E27:E29)-SUM(F27:F29))>0,SUM(E27:E29)-SUM(F27:F29),-(SUM(E27:E29)-SUM(F27:F29))) -> 60000
B32: Compte | C32: =C19 -> 512 | E32: Compte | F32: =C20 -> 0
B33: Débit | C33: Crédit | E33: Débit | F33: Crédit
B34: =F19 -> 0 | C34: =G19 -> 30000 | E34: =F20 -> 0
B37: =IF(SUM(B34:B36)-SUM(C34:C36)>0,"Solde Débiteur : ",IF(SUM(B34:B36)-SUM(C34:C36)<0,"Solde créditeur : ","")) -> Solde créditeur : | C37: =IF((SUM(B33:B36)-SUM(C33:C36))>0,SUM(B33:B36)-SUM(C33:C36),-(SUM(B33:B36)-SUM(C33:C36))) -> 30000 | E37: =IF(SUM(E34:E36)-SUM(F34:F36)>0,"Solde Débiteur : ",IF(SUM(E34:E36)-SUM(F34:F36)<0,"Solde créditeur : ","")) ->  | F37: =IF((SUM(E33:E36)-SUM(F33:F36))>0,SUM(E33:E36)-SUM(F33:F36),-(SUM(E33:E36)-SUM(F33:F36))) -> 0
B39: 4. Evaluer les conséquences sur le patrimoine de l’entreprise en présentant son bilan après l'opération.
B41: BILAN
B42: ACTIF | E42: PASSIF
B43: ACTIF IMMOBILISE | D43: =SUM(D45:D47) -> 90000 | E43: CAPITAUX PROPRES | G43: =SUM(G45:G46) -> 0
B45: Immobilisations Incorporelles | E45: Capital
B46: Immobilisations Corporelles | D46: 90000 | E46: Résultat | G46: =IF(AND(D72="",G72=""),"",IF(D72="",-G72,D72)) -> 
B47: Immobilisations Financières
B49: ACTIF CIRCULANT | D49: =SUM(D51:D53) -> -30000 | E49: DETTES | G49: =SUM(G51:G52) -> 60000
B51: Stocks | E51: Emprunts
B52: Créances | E52: Fournisseurs | G52: 60000
B53: Disponibilités | D53: -30000
B55: TOTAUX | D55: =D43+D49 -> 60000 | E55: TOTAUX | G55: =G43+G49 -> 60000
B57: 5. Evaluer les conséquences sur l'activité de l’entreprise en présentant son compte de résultat après l'opération.
B59: COMPTE DE RESULTAT
B60: CHARGES | E60: PRODUITS
B61: CHARGES EXPLOITATION | D61: =SUM(D63:D65) -> 0 | E61: PRODUITS EXPLOITATION | G61: =G63 -> 0
B63: Achats de marchandises | E63: Vente ou prestation de service
B64: Autres charges externes
B65: Dotations aux amortissements
B67: CHARGES FINANCIERES | E67: PRODUITS FINANCIERS
B70: CHARGES EXCEPTIONNELLES | E70: PRODUITS EXCEPTIONNELS
B71: Sous Total | D71: =D61+D67+D70 -> 0 | E71: Sous Total | G71: =G61+G67+G70 -> 0
B72: RESULTAT | C72: (Bénéfice) | D72: =IF(G71-D71>0,G71-D71,"") ->  | E72: RESULTAT | F72: (Perte) | G72: =IF(D71-G71>0,D71-G71,"") -> 
B73: TOTAUX | D73: =SUM(D72,D71) -> 0 | E73: TOTAUX | G73: =SUM(G72,G71) -> 0

Sheet Document 4-3
B2: Opération 4 | C2: Travaux d'aménagement
B4: Document 4-3 | C4: Chèque n° 004 sur la Banque des Alpes
B7: 1. Analyser l’opération suivant une démarche pédagogique choisie (Emploi/Ressource ou Origine/Destination).
B9: Destination/Emploi | F9: Origine/Ressources
B10: Diminution des dettes fournisseurs | D10: Montant | F10: Diminution de l'avoir en banque
D11: 60000
B13: 2. Procéder à l’enregistrement comptable correspondant sur bordereau de saisie.
B15: Bordereau de saisie
B16: Dates | C16: Comptes | D16: Intitulés | F16: Débit | G16: Crédit
B17: 2011-06-30 | C17: 404 | D17: =IF(C17="","",VLOOKUP(C17,Comptes,2,FALSE)) -> Fournisseurs d'immobilisations | F17: 60000
C18: 512 | D18: Banques | G18: 60000
B21: Totaux | F21: =SUM(F17:F20) -> 60000 | G21: =SUM(G17:G20) -> 60000
B23: 3. Effectuer le report dans les comptes de l’entreprise.
B25: Compte | C25: =C17 -> 404 | E25: Compte | F25: =C18 -> 512
B26: Débit | C26: Crédit | E26: Débit | F26: Crédit
B27: =F17 -> 60000 | C27: =G17 -> 0 | E27: =F18 -> 0 | F27: =G18 -> 60000
B30: =IF(SUM(B27:B29)-SUM(C27:C29)>0,"Solde Débiteur : ",IF(SUM(B27:B29)-SUM(C27:C29)<0,"Solde créditeur : ","")) -> Solde Débiteur : | C30: =IF((SUM(B27:B29)-SUM(C27:C29))>0,SUM(B27:B29)-SUM(C27:C29),-(SUM(B27:B29)-SUM(C27:C29))) -> 60000 | E30: =IF(SUM(E27:E29)-SUM(F27:F29)>0,"Solde Débiteur : ",IF(SUM(E27:E29)-SUM(F27:F29)<0,"Solde créditeur : ","")) -> Solde créditeur : | F30: =IF((SUM(E27:E29)-SUM(F27:F29))>0,SUM(E27:E29)-SUM(F27:F29),-(SUM(E27:E29)-SUM(F27:F29))) -> 60000
B32: Compte | C32: =C19 -> 0 | E32: Compte | F32: =C20 -> 0
B33: Débit | C33: Crédit | E33: Débit | F33: Crédit
B34: =F19 -> 0 | C34: =G19 -> 0 | E34: =F20 -> 0
B37: =IF(SUM(B34:B36)-SUM(C34:C36)>0,"Solde Débiteur : ",IF(SUM(B34:B36)-SUM(C34:C36)<0,"Solde créditeur : ","")) ->  | C37: =IF((SUM(B33:B36)-SUM(C33:C36))>0,SUM(B33:B36)-SUM(C33:C36),-(SUM(B33:B36)-SUM(C33:C36))) -> 0 | E37: =IF(SUM(E34:E36)-SUM(F34:F36)>0,"Solde Débiteur : ",IF(SUM(E34:E36)-SUM(F34:F36)<0,"Solde créditeur : ","")) ->  | F37: =IF((SUM(E33:E36)-SUM(F33:F36))>0,SUM(E33:E36)-SUM(F33:F36),-(SUM(E33:E36)-SUM(F33:F36))) -> 0
B39: 4. Evaluer les conséquences sur le patrimoine de l’entreprise en présentant son bilan après l'opération.
B41: BILAN
B42: ACTIF | E42: PASSIF
B43: ACTIF IMMOBILISE | D43: =SUM(D45:D47) -> 0 | E43: CAPITAUX PROPRES | G43: =SUM(G45:G46) -> 0
B45: Immobilisations Incorporelles | E45: Capital
B46: Immobilisations Corporelles | E46: Résultat | G46: =IF(AND(D72="",G72=""),"",IF(D72="",-G72,D72)) -> 
B47: Immobilisations Financières
B49: ACTIF CIRCULANT | D49: =SUM(D51:D53) -> -60000 | E49: DETTES | G49: =SUM(G51:G52) -> -60000
B51: Stocks | E51: Emprunts
B52: Créances | E52: Fournisseurs | G52: -60000
B53: Disponibilités | D53: -60000
B55: TOTAUX | D55: =D43+D49 -> -60000 | E55: TOTAUX | G55: =G43+G49 -> -60000
B57: 5. Evaluer les conséquences sur l'activité de l’entreprise en présentant son compte de résultat après l'opération.
B59: COMPTE DE RESULTAT
B60: CHARGES | E60: PRODUITS
B61: CHARGES EXPLOITATION | D61: =SUM(D63:D65) -> 0 | E61: PRODUITS EXPLOITATION | G61: =G63 -> 0
B63: Achats de marchandises | E63: Vente ou prestation de service
B64: Autres charges externes
B65: Dotations aux amortissements
B67: CHARGES FINANCIERES | E67: PRODUITS FINANCIERS
B70: CHARGES EXCEPTIONNELLES | E70: PRODUITS EXCEPTIONNELS
B71: Sous Total | D71: =D61+D67+D70 -> 0 | E71: Sous Total | G71: =G61+G67+G70 -> 0
B72: RESULTAT | C72: (Bénéfice) | D72: =IF(G71-D71>0,G71-D71,"") ->  | E72: RESULTAT | F72: (Perte) | G72: =IF(D71-G71>0,D71-G71,"") -> 
B73: TOTAUX | D73: =SUM(D72,D71) -> 0 | E73: TOTAUX | G73: =SUM(G72,G71) -> 0

Sheet Document 5-1-2
B2: Opération 5 | C2: Acquisition de matériel informatique
B4: Document 5-1-2 | C4: Facture du fournisseur LEPERCK - Chèque n° 002 sur la Banque des Alpes
B7: 1. Analyser l’opération suivant une démarche pédagogique choisie (Emploi/Ressource ou Origine/Destination).
B9: Destination/Emploi | F9: Origine/Ressources
B10: Matériel informatique | D10: Montant | F10: Diminution de l'avoir en banque Augmentation des dettes fournisseurs
D11: 1200
B13: 2. Procéder à l’enregistrement comptable correspondant sur bordereau de saisie.
B15: Bordereau de saisie
B16: Dates | C16: Comptes | D16: Intitulés | F16: Débit | G16: Crédit
B17: 2011-05-16 | C17: 2183 | D17: =IF(C17="","",VLOOKUP(C17,Comptes,2,FALSE)) -> Matériel de bureau et matériel informatique | F17: 1200
C18: 512 | D18: Banques | G18: 1200
B21: Totaux | F21: =SUM(F17:F20) -> 1200 | G21: =SUM(G17:G20) -> 1200
B23: 3. Effectuer le report dans les comptes de l’entreprise.
B25: Compte | C25: =C17 -> 2183 | E25: Compte | F25: =C18 -> 512
B26: Débit | C26: Crédit | E26: Débit | F26: Crédit
B27: =F17 -> 1200 | C27: =G17 -> 0 | E27: =F18 -> 0 | F27: =G18 -> 1200
B30: =IF(SUM(B27:B29)-SUM(C27:C29)>0,"Solde Débiteur : ",IF(SUM(B27:B29)-SUM(C27:C29)<0,"Solde créditeur : ","")) -> Solde Débiteur : | C30: =IF((SUM(B27:B29)-SUM(C27:C29))>0,SUM(B27:B29)-SUM(C27:C29),-(SUM(B27:B29)-SUM(C27:C29))) -> 1200 | E30: =IF(SUM(E27:E29)-SUM(F27:F29)>0,"Solde Débiteur : ",IF(SUM(E27:E29)-SUM(F27:F29)<0,"Solde créditeur : ","")) -> Solde créditeur : | F30: =IF((SUM(E27:E29)-SUM(F27:F29))>0,SUM(E27:E29)-SUM(F27:F29),-(SUM(E27:E29)-SUM(F27:F29))) -> 1200
B32: Compte | C32: =C19 -> 0 | E32: Compte | F32: =C20 -> 0
B33: Débit | C33: Crédit | E33: Débit | F33: Crédit
B34: =F19 -> 0 | C34: =G19 -> 0 | E34: =F20 -> 0
B37: =IF(SUM(B34:B36)-SUM(C34:C36)>0,"Solde Débiteur : ",IF(SUM(B34:B36)-SUM(C34:C36)<0,"Solde créditeur : ","")) ->  | C37: =IF((SUM(B33:B36)-SUM(C33:C36))>0,SUM(B33:B36)-SUM(C33:C36),-(SUM(B33:B36)-SUM(C33:C36))) -> 0 | E37: =IF(SUM(E34:E36)-SUM(F34:F36)>0,"Solde Débiteur : ",IF(SUM(E34:E36)-SUM(F34:F36)<0,"Solde créditeur : ","")) ->  | F37: =IF((SUM(E33:E36)-SUM(F33:F36))>0,SUM(E33:E36)-SUM(F33:F36),-(SUM(E33:E36)-SUM(F33:F36))) -> 0
B39: 4. Evaluer les conséquences sur le patrimoine de l’entreprise en présentant son bilan après l'opération.
B41: BILAN
B42: ACTIF | E42: PASSIF
B43: ACTIF IMMOBILISE | D43: =SUM(D45:D47) -> 1200 | E43: CAPITAUX PROPRES | G43: =SUM(G45:G46) -> 0
B45: Immobilisations Incorporelles | E45: Capital
B46: Immobilisations Corporelles | D46: 1200 | E46: Résultat | G46: =IF(AND(D72="",G72=""),"",IF(D72="",-G72,D72)) -> 
B47: Immobilisations Financières
B49: ACTIF CIRCULANT | D49: =SUM(D51:D53) -> -1200 | E49: DETTES | G49: =SUM(G51:G52) -> 0
B51: Stocks | E51: Emprunts
B52: Créances | E52: Fournisseurs
B53: Disponibilités | D53: -1200
B55: TOTAUX | D55: =D43+D49 -> 0 | E55: TOTAUX | G55: =G43+G49 -> 0
B57: 5. Evaluer les conséquences sur l'activité de l’entreprise en présentant son compte de résultat après l'opération.
B59: COMPTE DE RESULTAT
B60: CHARGES | E60: PRODUITS
B61: CHARGES EXPLOITATION | D61: =SUM(D63:D65) -> 0 | E61: PRODUITS EXPLOITATION | G61: =G63 -> 0
B63: Achats de marchandises | E63: Vente ou prestation de service
B64: Autres charges externes
B65: Dotations aux amortissements
B67: CHARGES FINANCIERES | E67: PRODUITS FINANCIERS
B70: CHARGES EXCEPTIONNELLES | E70: PRODUITS EXCEPTIONNELS
B71: Sous Total | D71: =D61+D67+D70 -> 0 | E71: Sous Total | G71: =G61+G67+G70 -> 0
B72: RESULTAT | C72: (Bénéfice) | D72: =IF(G71-D71>0,G71-D71,"") ->  | E72: RESULTAT | F72: (Perte) | G72: =IF(D71-G71>0,D71-G71,"") -> 
B73: TOTAUX | D73: =SUM(D72,D71) -> 0 | E73: TOTAUX | G73: =SUM(G72,G71) -> 0

Sheet Document 6-1
B2: Opération 6 | C2: Acquisition de mobilier de bureau
B4: Document 6-1 | C4: Facture du fournisseur BUREAU 05
B7: 1. Analyser l’opération suivant une démarche pédagogique choisie (Emploi/Ressource ou Origine/Destination).
B9: Destination/Emploi | F9: Origine/Ressources
B10: Acquisition de mobilier de bureau | D10: Montant | F10: Augmentation des dettes fournisseurs
D11: 1500
B13: 2. Procéder à l’enregistrement comptable correspondant sur bordereau de saisie.
B15: Bordereau de saisie
B16: Dates | C16: Comptes | D16: Intitulés | F16: Débit | G16: Crédit
B17: 2011-05-17 | C17: 2183 | D17: =IF(C17="","",VLOOKUP(C17,Comptes,2,FALSE)) -> Matériel de bureau et matériel informatique | F17: 1500
C18: 404 | D18: Fournisseurs d'immobilisations | G18: 1500
B21: Totaux | F21: =SUM(F17:F20) -> 1500 | G21: =SUM(G17:G20) -> 1500
B23: 3. Effectuer le report dans les comptes de l’entreprise.
B25: Compte | C25: =C17 -> 2183 | E25: Compte | F25: =C18 -> 404
B26: Débit | C26: Crédit | E26: Débit | F26: Crédit
B27: =F17 -> 1500 | C27: =G17 -> 0 | E27: =F18 -> 0 | F27: =G18 -> 1500
B30: =IF(SUM(B27:B29)-SUM(C27:C29)>0,"Solde Débiteur : ",IF(SUM(B27:B29)-SUM(C27:C29)<0,"Solde créditeur : ","")) -> Solde Débiteur : | C30: =IF((SUM(B27:B29)-SUM(C27:C29))>0,SUM(B27:B29)-SUM(C27:C29),-(SUM(B27:B29)-SUM(C27:C29))) -> 1500 | E30: =IF(SUM(E27:E29)-SUM(F27:F29)>0,"Solde Débiteur : ",IF(SUM(E27:E29)-SUM(F27:F29)<0,"Solde créditeur : ","")) -> Solde créditeur : | F30: =IF((SUM(E27:E29)-SUM(F27:F29))>0,SUM(E27:E29)-SUM(F27:F29),-(SUM(E27:E29)-SUM(F27:F29))) -> 1500
B32: Compte | C32: =C19 -> 0 | E32: Compte | F32: =C20 -> 0
B33: Débit | C33: Crédit | E33: Débit | F33: Crédit
B34: =F19 -> 0 | C34: =G19 -> 0 | E34: =F20 -> 0
B37: =IF(SUM(B34:B36)-SUM(C34:C36)>0,"Solde Débiteur : ",IF(SUM(B34:B36)-SUM(C34:C36)<0,"Solde créditeur : ","")) ->  | C37: =IF((SUM(B33:B36)-SUM(C33:C36))>0,SUM(B33:B36)-SUM(C33:C36),-(SUM(B33:B36)-SUM(C33:C36))) -> 0 | E37: =IF(SUM(E34:E36)-SUM(F34:F36)>0,"Solde Débiteur : ",IF(SUM(E34:E36)-SUM(F34:F36)<0,"Solde créditeur : ","")) ->  | F37: =IF((SUM(E33:E36)-SUM(F33:F36))>0,SUM(E33:E36)-SUM(F33:F36),-(SUM(E33:E36)-SUM(F33:F36))) -> 0
B39: 4. Evaluer les conséquences sur le patrimoine de l’entreprise en présentant son bilan après l'opération.
B41: BILAN
B42: ACTIF | E42: PASSIF
B43: ACTIF IMMOBILISE | D43: =SUM(D45:D47) -> 1500 | E43: CAPITAUX PROPRES | G43: =SUM(G45:G46) -> 0
B45: Immobilisations Incorporelles | E45: Capital
B46: Immobilisations Corporelles | D46: 1500 | E46: Résultat | G46: =IF(AND(D72="",G72=""),"",IF(D72="",-G72,D72)) -> 
B47: Immobilisations Financières
B49: ACTIF CIRCULANT | D49: =SUM(D51:D53) -> 0 | E49: DETTES | G49: =SUM(G51:G52) -> 1500
B51: Stocks | E51: Emprunts
B52: Créances | E52: Fournisseurs | G52: 1500
B53: Disponibilités
B55: TOTAUX | D55: =D43+D49 -> 1500 | E55: TOTAUX | G55: =G43+G49 -> 1500
B57: 5. Evaluer les conséquences sur l'activité de l’entreprise en présentant son compte de résultat après l'opération.
B59: COMPTE DE RESULTAT
B60: CHARGES | E60: PRODUITS
B61: CHARGES EXPLOITATION | D61: =SUM(D63:D65) -> 0 | E61: PRODUITS EXPLOITATION | G61: =G63 -> 0
B63: Achats de marchandises | E63: Vente ou prestation de service
B64: Autres charges externes
B65: Dotations aux amortissements
B67: CHARGES FINANCIERES | E67: PRODUITS FINANCIERS
B70: CHARGES EXCEPTIONNELLES | E70: PRODUITS EXCEPTIONNELS
B71: Sous Total | D71: =D61+D67+D70 -> 0 | E71: Sous Total | G71: =G61+G67+G70 -> 0
B72: RESULTAT | C72: (Bénéfice) | D72: =IF(G71-D71>0,G71-D71,"") ->  | E72: RESULTAT | F72: (Perte) | G72: =IF(D71-G71>0,D71-G71,"") -> 
B73: TOTAUX | D73: =SUM(D72,D71) -> 0 | E73: TOTAUX | G73: =SUM(G72,G71) -> 0

Sheet Document 6-2
B2: Opération 6 | C2: Acquisition de mobilier de bureau
B4: Document 6-2 | C4: Chèque n° 006 sur la Banque des Alpes
B7: 1. Analyser l’opération suivant une démarche pédagogique choisie (Emploi/Ressource ou Origine/Destination).
B9: Destination/Emploi | F9: Origine/Ressources
B10: Diminution des dettes fournisseurs | D10: Montant | F10: Diminution de l'avoir en bvanque
D11: 1500
B13: 2. Procéder à l’enregistrement comptable correspondant sur bordereau de saisie.
B15: Bordereau de saisie
B16: Dates | C16: Comptes | D16: Intitulés | F16: Débit | G16: Crédit
B17: 2011-07-31 | C17: 404 | D17: =IF(C17="","",VLOOKUP(C17,Comptes,2,FALSE)) -> Fournisseurs d'immobilisations | F17: 1500
C18: 512 | D18: Banques | G18: 1500
B21: Totaux | F21: =SUM(F17:F20) -> 1500 | G21: =SUM(G17:G20) -> 1500
B23: 3. Effectuer le report dans les comptes de l’entreprise.
B25: Compte | C25: =C17 -> 404 | E25: Compte | F25: =C18 -> 512
B26: Débit | C26: Crédit | E26: Débit | F26: Crédit
B27: =F17 -> 1500 | C27: =G17 -> 0 | E27: =F18 -> 0 | F27: =G18 -> 1500
B30: =IF(SUM(B27:B29)-SUM(C27:C29)>0,"Solde Débiteur : ",IF(SUM(B27:B29)-SUM(C27:C29)<0,"Solde créditeur : ","")) -> Solde Débiteur : | C30: =IF((SUM(B27:B29)-SUM(C27:C29))>0,SUM(B27:B29)-SUM(C27:C29),-(SUM(B27:B29)-SUM(C27:C29))) -> 1500 | E30: =IF(SUM(E27:E29)-SUM(F27:F29)>0,"Solde Débiteur : ",IF(SUM(E27:E29)-SUM(F27:F29)<0,"Solde créditeur : ","")) -> Solde créditeur : | F30: =IF((SUM(E27:E29)-SUM(F27:F29))>0,SUM(E27:E29)-SUM(F27:F29),-(SUM(E27:E29)-SUM(F27:F29))) -> 1500
B32: Compte | C32: =C19 -> 0 | E32: Compte | F32: =C20 -> 0
B33: Débit | C33: Crédit | E33: Débit | F33: Crédit
B34: =F19 -> 0 | C34: =G19 -> 0 | E34: =F20 -> 0
B37: =IF(SUM(B34:B36)-SUM(C34:C36)>0,"Solde Débiteur : ",IF(SUM(B34:B36)-SUM(C34:C36)<0,"Solde créditeur : ","")) ->  | C37: =IF((SUM(B33:B36)-SUM(C33:C36))>0,SUM(B33:B36)-SUM(C33:C36),-(SUM(B33:B36)-SUM(C33:C36))) -> 0 | E37: =IF(SUM(E34:E36)-SUM(F34:F36)>0,"Solde Débiteur : ",IF(SUM(E34:E36)-SUM(F34:F36)<0,"Solde créditeur : ","")) ->  | F37: =IF((SUM(E33:E36)-SUM(F33:F36))>0,SUM(E33:E36)-SUM(F33:F36),-(SUM(E33:E36)-SUM(F33:F36))) -> 0
B39: 4. Evaluer les conséquences sur le patrimoine de l’entreprise en présentant son bilan après l'opération.
B41: BILAN
B42: ACTIF | E42: PASSIF
B43: ACTIF IMMOBILISE | D43: =SUM(D45:D47) -> 0 | E43: CAPITAUX PROPRES | G43: =SUM(G45:G46) -> 0
B45: Immobilisations Incorporelles | E45: Capital
B46: Immobilisations Corporelles | E46: Résultat | G46: =IF(AND(D72="",G72=""),"",IF(D72="",-G72,D72)) -> 
B47: Immobilisations Financières
B49: ACTIF CIRCULANT | D49: =SUM(D51:D53) -> -1500 | E49: DETTES | G49: =SUM(G51:G52) -> -1500
B51: Stocks | E51: Emprunts
B52: Créances | E52: Fournisseurs | G52: -1500
B53: Disponibilités | D53: -1500
B55: TOTAUX | D55: =D43+D49 -> -1500 | E55: TOTAUX | G55: =G43+G49 -> -1500
B57: 5. Evaluer les conséquences sur l'activité de l’entreprise en présentant son compte de résultat après l'opération.
B59: COMPTE DE RESULTAT
B60: CHARGES | E60: PRODUITS
B61: CHARGES EXPLOITATION | D61: =SUM(D63:D65) -> 0 | E61: PRODUITS EXPLOITATION | G61: =G63 -> 0
B63: Achats de marchandises | E63: Vente ou prestation de service
B64: Autres charges externes
B65: Dotations aux amortissements
B67: CHARGES FINANCIERES | E67: PRODUITS FINANCIERS
B70: CHARGES EXCEPTIONNELLES | E70: PRODUITS EXCEPTIONNELS
B71: Sous Total | D71: =D61+D67+D70 -> 0 | E71: Sous Total | G71: =G61+G67+G70 -> 0
B72: RESULTAT | C72: (Bénéfice) | D72: =IF(G71-D71>0,G71-D71,"") ->  | E72: RESULTAT | F72: (Perte) | G72: =IF(D71-G71>0,D71-G71,"") -> 
B73: TOTAUX | D73: =SUM(D72,D71) -> 0 | E73: TOTAUX | G73: =SUM(G72,G71) -> 0

Sheet Document 7
B2: Opération 7 | C2: Abonnement et prélèvement EDF
B4: Document 7 | C4: Quittance du fournisseur GAP-ELEC avec avis de prélèvement
B7: 1. Analyser l’opération suivant une démarche pédagogique choisie (Emploi/Ressource ou Origine/Destination).
B9: Destination/Emploi | F9: Origine/Ressources
B10: Forfait annuel électricité | D10: Montant | F10: Diminution de l'avoir en banque
D11: 1800
B13: 2. Procéder à l’enregistrement comptable correspondant sur bordereau de saisie.
B15: Bordereau de saisie
B16: Dates | C16: Comptes | D16: Intitulés | F16: Débit | G16: Crédit
B17: 2011-06-01 | C17: 6061 | D17: =IF(C17="","",VLOOKUP(C17,Comptes,2,FALSE)) -> Fournitures non stockables (eau, énergie…) | F17: 1800
C18: 512 | D18: Banques | G18: 1800
B21: Totaux | F21: =SUM(F17:F20) -> 1800 | G21: =SUM(G17:G20) -> 1800
B23: 3. Effectuer le report dans les comptes de l’entreprise.
B25: Compte | C25: =C17 -> 6061 | E25: Compte | F25: =C18 -> 512
B26: Débit | C26: Crédit | E26: Débit | F26: Crédit
B27: =F17 -> 1800 | C27: =G17 -> 0 | E27: =F18 -> 0 | F27: =G18 -> 1800
B30: =IF(SUM(B27:B29)-SUM(C27:C29)>0,"Solde Débiteur : ",IF(SUM(B27:B29)-SUM(C27:C29)<0,"Solde créditeur : ","")) -> Solde Débiteur : | C30: =IF((SUM(B27:B29)-SUM(C27:C29))>0,SUM(B27:B29)-SUM(C27:C29),-(SUM(B27:B29)-SUM(C27:C29))) -> 1800 | E30: =IF(SUM(E27:E29)-SUM(F27:F29)>0,"Solde Débiteur : ",IF(SUM(E27:E29)-SUM(F27:F29)<0,"Solde créditeur : ","")) -> Solde créditeur : | F30: =IF((SUM(E27:E29)-SUM(F27:F29))>0,SUM(E27:E29)-SUM(F27:F29),-(SUM(E27:E29)-SUM(F27:F29))) -> 1800
B32: Compte | C32: =C19 -> 0 | E32: Compte | F32: =C20 -> 0
B33: Débit | C33: Crédit | E33: Débit | F33: Crédit
B34: =F19 -> 0 | C34: =G19 -> 0 | E34: =F20 -> 0
B37: =IF(SUM(B34:B36)-SUM(C34:C36)>0,"Solde Débiteur : ",IF(SUM(B34:B36)-SUM(C34:C36)<0,"Solde créditeur : ","")) ->  | C37: =IF((SUM(B33:B36)-SUM(C33:C36))>0,SUM(B33:B36)-SUM(C33:C36),-(SUM(B33:B36)-SUM(C33:C36))) -> 0 | E37: =IF(SUM(E34:E36)-SUM(F34:F36)>0,"Solde Débiteur : ",IF(SUM(E34:E36)-SUM(F34:F36)<0,"Solde créditeur : ","")) ->  | F37: =IF((SUM(E33:E36)-SUM(F33:F36))>0,SUM(E33:E36)-SUM(F33:F36),-(SUM(E33:E36)-SUM(F33:F36))) -> 0
B39: 4. Evaluer les conséquences sur le patrimoine de l’entreprise en présentant son bilan après l'opération.
B41: BILAN
B42: ACTIF | E42: PASSIF
B43: ACTIF IMMOBILISE | D43: =SUM(D45:D47) -> 0 | E43: CAPITAUX PROPRES | G43: =SUM(G45:G46) -> -1800
B45: Immobilisations Incorporelles | E45: Capital
B46: Immobilisations Corporelles | E46: Résultat | G46: =IF(AND(D72="",G72=""),"",IF(D72="",-G72,D72)) -> -1800
B47: Immobilisations Financières
B49: ACTIF CIRCULANT | D49: =SUM(D51:D53) -> -1800 | E49: DETTES | G49: =SUM(G51:G52) -> 0
B51: Stocks | E51: Emprunts
B52: Créances | E52: Fournisseurs
B53: Disponibilités | D53: -1800
B55: TOTAUX | D55: =D43+D49 -> -1800 | E55: TOTAUX | G55: =G43+G49 -> -1800
B57: 5. Evaluer les conséquences sur l'activité de l’entreprise en présentant son compte de résultat après l'opération.
B59: COMPTE DE RESULTAT
B60: CHARGES | E60: PRODUITS
B61: CHARGES EXPLOITATION | D61: =SUM(D63:D65) -> 1800 | E61: PRODUITS EXPLOITATION | G61: =G63 -> 0
B63: Achats de marchandises | E63: Vente ou prestation de service
B64: Autres charges externes | D64: 1800
B65: Dotations aux amortissements
B67: CHARGES FINANCIERES | E67: PRODUITS FINANCIERS
B70: CHARGES EXCEPTIONNELLES | E70: PRODUITS EXCEPTIONNELS
B71: Sous Total | D71: =D61+D67+D70 -> 1800 | E71: Sous Total | G71: =G61+G67+G70 -> 0
B72: RESULTAT | C72: (Bénéfice) | D72: =IF(G71-D71>0,G71-D71,"") ->  | E72: RESULTAT | F72: (Perte) | G72: =IF(D71-G71>0,D71-G71,"") -> 1800
B73: TOTAUX | D73: =SUM(D72,D71) -> 1800 | E73: TOTAUX | G73: =SUM(G72,G71) -> 1800

Sheet Document 8-1
B2: Opération 8 | C2: Abonnement téléphonie FRS
B4: Document 8-1 | C4: Facture du fournisseur FRS et avis de prélèvement
B7: 1. Analyser l’opération suivant une démarche pédagogique choisie (Emploi/Ressource ou Origine/Destination).
B9: Destination/Emploi | F9: Origine/Ressources
B10: Abonnement téléphonie | D10: Montant | F10: Diminution de l'avoir en banque
D11: 100
B13: 2. Procéder à l’enregistrement comptable correspondant sur bordereau de saisie.
B15: Bordereau de saisie
B16: Dates | C16: Comptes | D16: Intitulés | F16: Débit | G16: Crédit
B17: 2011-06-03 | C17: 626 | D17: =IF(C17="","",VLOOKUP(C17,Comptes,2,FALSE)) -> Frais postaux et frais de télécommunication | F17: 100
C18: 512 | D18: Banques | G18: 100
B21: Totaux | F21: =SUM(F17:F20) -> 100 | G21: =SUM(G17:G20) -> 100
B23: 3. Effectuer le report dans les comptes de l’entreprise.
B25: Compte | C25: =C17 -> 626 | E25: Compte | F25: =C18 -> 512
B26: Débit | C26: Crédit | E26: Débit | F26: Crédit
B27: =F17 -> 100 | C27: =G17 -> 0 | E27: =F18 -> 0 | F27: =G18 -> 100
B30: =IF(SUM(B27:B29)-SUM(C27:C29)>0,"Solde Débiteur : ",IF(SUM(B27:B29)-SUM(C27:C29)<0,"Solde créditeur : ","")) -> Solde Débiteur : | C30: =IF((SUM(B27:B29)-SUM(C27:C29))>0,SUM(B27:B29)-SUM(C27:C29),-(SUM(B27:B29)-SUM(C27:C29))) -> 100 | E30: =IF(SUM(E27:E29)-SUM(F27:F29)>0,"Solde Débiteur : ",IF(SUM(E27:E29)-SUM(F27:F29)<0,"Solde créditeur : ","")) -> Solde créditeur : | F30: =IF((SUM(E27:E29)-SUM(F27:F29))>0,SUM(E27:E29)-SUM(F27:F29),-(SUM(E27:E29)-SUM(F27:F29))) -> 100
B32: Compte | C32: =C19 -> 0 | E32: Compte | F32: =C20 -> 0
B33: Débit | C33: Crédit | E33: Débit | F33: Crédit
B34: =F19 -> 0 | C34: =G19 -> 0 | E34: =F20 -> 0
B37: =IF(SUM(B34:B36)-SUM(C34:C36)>0,"Solde Débiteur : ",IF(SUM(B34:B36)-SUM(C34:C36)<0,"Solde créditeur : ","")) ->  | C37: =IF((SUM(B33:B36)-SUM(C33:C36))>0,SUM(B33:B36)-SUM(C33:C36),-(SUM(B33:B36)-SUM(C33:C36))) -> 0 | E37: =IF(SUM(E34:E36)-SUM(F34:F36)>0,"Solde Débiteur : ",IF(SUM(E34:E36)-SUM(F34:F36)<0,"Solde créditeur : ","")) ->  | F37: =IF((SUM(E33:E36)-SUM(F33:F36))>0,SUM(E33:E36)-SUM(F33:F36),-(SUM(E33:E36)-SUM(F33:F36))) -> 0
B39: 4. Evaluer les conséquences sur le patrimoine de l’entreprise en présentant son bilan après l'opération.
B41: BILAN
B42: ACTIF | E42: PASSIF
B43: ACTIF IMMOBILISE | D43: =SUM(D45:D47) -> 0 | E43: CAPITAUX PROPRES | G43: =SUM(G45:G46) -> -100
B45: Immobilisations Incorporelles | E45: Capital
B46: Immobilisations Corporelles | E46: Résultat | G46: =IF(AND(D72="",G72=""),"",IF(D72="",-G72,D72)) -> -100
B47: Immobilisations Financières
B49: ACTIF CIRCULANT | D49: =SUM(D51:D53) -> -100 | E49: DETTES | G49: =SUM(G51:G52) -> 0
B51: Stocks | E51: Emprunts
B52: Créances | E52: Fournisseurs
B53: Disponibilités | D53: -100
B55: TOTAUX | D55: =D43+D49 -> -100 | E55: TOTAUX | G55: =G43+G49 -> -100
B57: 5. Evaluer les conséquences sur l'activité de l’entreprise en présentant son compte de résultat après l'opération.
B59: COMPTE DE RESULTAT
B60: CHARGES | E60: PRODUITS
B61: CHARGES EXPLOITATION | D61: =SUM(D63:D65) -> 100 | E61: PRODUITS EXPLOITATION | G61: =G63 -> 0
B63: Achats de marchandises | E63: Vente ou prestation de service
B64: Autres charges externes | D64: 100
B65: Dotations aux amortissements
B67: CHARGES FINANCIERES | E67: PRODUITS FINANCIERS
B70: CHARGES EXCEPTIONNELLES | E70: PRODUITS EXCEPTIONNELS
B71: Sous Total | D71: =D61+D67+D70 -> 100 | E71: Sous Total | G71: =G61+G67+G70 -> 0
B72: RESULTAT | C72: (Bénéfice) | D72: =IF(G71-D71>0,G71-D71,"") ->  | E72: RESULTAT | F72: (Perte) | G72: =IF(D71-G71>0,D71-G71,"") -> 100
B73: TOTAUX | D73: =SUM(D72,D71) -> 100 | E73: TOTAUX | G73: =SUM(G72,G71) -> 100

Sheet Document 8-2
B2: Opération 8 | C2: Abonnement téléphonie FRS
B4: Document 8-2 | C4: Facture du fournisseur FRS et avis de prélèvement
B7: 1. Analyser l’opération suivant une démarche pédagogique choisie (Emploi/Ressource ou Origine/Destination).
B9: Destination/Emploi | F9: Origine/Ressources
B10: Abonnement téléphonie | D10: Montant | F10: Diminution de l'avoir en banque
D11: 100
B13: 2. Procéder à l’enregistrement comptable correspondant sur bordereau de saisie.
B15: Bordereau de saisie
B16: Dates | C16: Comptes | D16: Intitulés | F16: Débit | G16: Crédit
B17: 2011-06-03 | C17: 626 | D17: =IF(C17="","",VLOOKUP(C17,Comptes,2,FALSE)) -> Frais postaux et frais de télécommunication | F17: 100
C18: 512 | D18: Banques | G18: 100
B21: Totaux | F21: =SUM(F17:F20) -> 100 | G21: =SUM(G17:G20) -> 100
B23: 3. Effectuer le report dans les comptes de l’entreprise.
B25: Compte | C25: =C17 -> 626 | E25: Compte | F25: =C18 -> 512
B26: Débit | C26: Crédit | E26: Débit | F26: Crédit
B27: =F17 -> 100 | C27: =G17 -> 0 | E27: =F18 -> 0 | F27: =G18 -> 100
B30: =IF(SUM(B27:B29)-SUM(C27:C29)>0,"Solde Débiteur : ",IF(SUM(B27:B29)-SUM(C27:C29)<0,"Solde créditeur : ","")) -> Solde Débiteur : | C30: =IF((SUM(B27:B29)-SUM(C27:C29))>0,SUM(B27:B29)-SUM(C27:C29),-(SUM(B27:B29)-SUM(C27:C29))) -> 100 | E30: =IF(SUM(E27:E29)-SUM(F27:F29)>0,"Solde Débiteur : ",IF(SUM(E27:E29)-SUM(F27:F29)<0,"Solde créditeur : ","")) -> Solde créditeur : | F30: =IF((SUM(E27:E29)-SUM(F27:F29))>0,SUM(E27:E29)-SUM(F27:F29),-(SUM(E27:E29)-SUM(F27:F29))) -> 100
B32: Compte | C32: =C19 -> 0 | E32: Compte | F32: =C20 -> 0
B33: Débit | C33: Crédit | E33: Débit | F33: Crédit
B34: =F19 -> 0 | C34: =G19 -> 0 | E34: =F20 -> 0
B37: =IF(SUM(B34:B36)-SUM(C34:C36)>0,"Solde Débiteur : ",IF(SUM(B34:B36)-SUM(C34:C36)<0,"Solde créditeur : ","")) ->  | C37: =IF((SUM(B33:B36)-SUM(C33:C36))>0,SUM(B33:B36)-SUM(C33:C36),-(SUM(B33:B36)-SUM(C33:C36))) -> 0 | E37: =IF(SUM(E34:E36)-SUM(F34:F36)>0,"Solde Débiteur : ",IF(SUM(E34:E36)-SUM(F34:F36)<0,"Solde créditeur : ","")) ->  | F37: =IF((SUM(E33:E36)-SUM(F33:F36))>0,SUM(E33:E36)-SUM(F33:F36),-(SUM(E33:E36)-SUM(F33:F36))) -> 0
B39: 4. Evaluer les conséquences sur le patrimoine de l’entreprise en présentant son bilan après l'opération.
B41: BILAN
B42: ACTIF | E42: PASSIF
B43: ACTIF IMMOBILISE | D43: =SUM(D45:D47) -> 0 | E43: CAPITAUX PROPRES | G43: =SUM(G45:G46) -> -100
B45: Immobilisations Incorporelles | E45: Capital
B46: Immobilisations Corporelles | E46: Résultat | G46: =IF(AND(D72="",G72=""),"",IF(D72="",-G72,D72)) -> -100
B47: Immobilisations Financières
B49: ACTIF CIRCULANT | D49: =SUM(D51:D53) -> -100 | E49: DETTES | G49: =SUM(G51:G52) -> 0
B51: Stocks | E51: Emprunts
B52: Créances | E52: Fournisseurs
B53: Disponibilités | D53: -100
B55: TOTAUX | D55: =D43+D49 -> -100 | E55: TOTAUX | G55: =G43+G49 -> -100
B57: 5. Evaluer les conséquences sur l'activité de l’entreprise en présentant son compte de résultat après l'opération.
B59: COMPTE DE RESULTAT
B60: CHARGES | E60: PRODUITS
B61: CHARGES EXPLOITATION | D61: =SUM(D63:D65) -> 100 | E61: PRODUITS EXPLOITATION | G61: =G63 -> 0
B63: Achats de marchandises | E63: Vente ou prestation de service
B64: Autres charges externes | D64: 100
B65: Dotations aux amortissements
B67: CHARGES FINANCIERES | E67: PRODUITS FINANCIERS
B70: CHARGES EXCEPTIONNELLES | E70: PRODUITS EXCEPTIONNELS
B71: Sous Total | D71: =D61+D67+D70 -> 100 | E71: Sous Total | G71: =G61+G67+G70 -> 0
B72: RESULTAT | C72: (Bénéfice) | D72: =IF(G71-D71>0,G71-D71,"") ->  | E72: RESULTAT | F72: (Perte) | G72: =IF(D71-G71>0,D71-G71,"") -> 100
B73: TOTAUX | D73: =SUM(D72,D71) -> 100 | E73: TOTAUX | G73: =SUM(G72,G71) -> 100

Sheet Document 9
B2: Opération 9 | C2: Achat de fournitures de bureau
B4: Document 9 | C4: Facture du fournisseur PAP 05 - Chèque n° 003 sur la Banque des Alpes
B7: 1. Analyser l’opération suivant une démarche pédagogique choisie (Emploi/Ressource ou Origine/Destination).
B9: Destination/Emploi | F9: Origine/Ressources
B10: Fournitures de bureau | D10: Montant | F10: Diminution de l'avoir en banque
D11: 320
B13: 2. Procéder à l’enregistrement comptable correspondant sur bordereau de saisie.
B15: Bordereau de saisie
B16: Dates | C16: Comptes | D16: Intitulés | F16: Débit | G16: Crédit
B17: 2011-06-04 | C17: 6064 | D17: =IF(C17="","",VLOOKUP(C17,Comptes,2,FALSE)) -> Fournitures administratives | F17: 320
C18: 512 | D18: Banques | G18: 320
B21: Totaux | F21: =SUM(F17:F20) -> 320 | G21: =SUM(G17:G20) -> 320
B23: 3. Effectuer le report dans les comptes de l’entreprise.
B25: Compte | C25: =C17 -> 6064 | E25: Compte | F25: =C18 -> 512
B26: Débit | C26: Crédit | E26: Débit | F26: Crédit
B27: =F17 -> 320 | C27: =G17 -> 0 | E27: =F18 -> 0 | F27: =G18 -> 320
B30: =IF(SUM(B27:B29)-SUM(C27:C29)>0,"Solde Débiteur : ",IF(SUM(B27:B29)-SUM(C27:C29)<0,"Solde créditeur : ","")) -> Solde Débiteur : | C30: =IF((SUM(B27:B29)-SUM(C27:C29))>0,SUM(B27:B29)-SUM(C27:C29),-(SUM(B27:B29)-SUM(C27:C29))) -> 320 | E30: =IF(SUM(E27:E29)-SUM(F27:F29)>0,"Solde Débiteur : ",IF(SUM(E27:E29)-SUM(F27:F29)<0,"Solde créditeur : ","")) -> Solde créditeur : | F30: =IF((SUM(E27:E29)-SUM(F27:F29))>0,SUM(E27:E29)-SUM(F27:F29),-(SUM(E27:E29)-SUM(F27:F29))) -> 320
B32: Compte | C32: =C19 -> 0 | E32: Compte | F32: =C20 -> 0
B33: Débit | C33: Crédit | E33: Débit | F33: Crédit
B34: =F19 -> 0 | C34: =G19 -> 0 | E34: =F20 -> 0
B37: =IF(SUM(B34:B36)-SUM(C34:C36)>0,"Solde Débiteur : ",IF(SUM(B34:B36)-SUM(C34:C36)<0,"Solde créditeur : ","")) ->  | C37: =IF((SUM(B33:B36)-SUM(C33:C36))>0,SUM(B33:B36)-SUM(C33:C36),-(SUM(B33:B36)-SUM(C33:C36))) -> 0 | E37: =IF(SUM(E34:E36)-SUM(F34:F36)>0,"Solde Débiteur : ",IF(SUM(E34:E36)-SUM(F34:F36)<0,"Solde créditeur : ","")) ->  | F37: =IF((SUM(E33:E36)-SUM(F33:F36))>0,SUM(E33:E36)-SUM(F33:F36),-(SUM(E33:E36)-SUM(F33:F36))) -> 0
B39: 4. Evaluer les conséquences sur le patrimoine de l’entreprise en présentant son bilan après l'opération.
B41: BILAN
B42: ACTIF | E42: PASSIF
B43: ACTIF IMMOBILISE | D43: =SUM(D45:D47) -> 0 | E43: CAPITAUX PROPRES | G43: =SUM(G45:G46) -> -320
B45: Immobilisations Incorporelles | E45: Capital
B46: Immobilisations Corporelles | E46: Résultat | G46: =IF(AND(D72="",G72=""),"",IF(D72="",-G72,D72)) -> -320
B47: Immobilisations Financières
B49: ACTIF CIRCULANT | D49: =SUM(D51:D53) -> -320 | E49: DETTES | G49: =SUM(G51:G52) -> 0
B51: Stocks | E51: Emprunts
B52: Créances | E52: Fournisseurs
B53: Disponibilités | D53: -320
B55: TOTAUX | D55: =D43+D49 -> -320 | E55: TOTAUX | G55: =G43+G49 -> -320
B57: 5. Evaluer les conséquences sur l'activité de l’entreprise en présentant son compte de résultat après l'opération.
B59: COMPTE DE RESULTAT
B60: CHARGES | E60: PRODUITS
B61: CHARGES EXPLOITATION | D61: =SUM(D63:D65) -> 320 | E61: PRODUITS EXPLOITATION | G61: =G63 -> 0
B63: Achats de marchandises | E63: Vente ou prestation de service
B64: Autres charges externes | D64: 320
B65: Dotations aux amortissements
B67: CHARGES FINANCIERES | E67: PRODUITS FINANCIERS
B70: CHARGES EXCEPTIONNELLES | E70: PRODUITS EXCEPTIONNELS
B71: Sous Total | D71: =D61+D67+D70 -> 320 | E71: Sous Total | G71: =G61+G67+G70 -> 0
B72: RESULTAT | C72: (Bénéfice) | D72: =IF(G71-D71>0,G71-D71,"") ->  | E72: RESULTAT | F72: (Perte) | G72: =IF(D71-G71>0,D71-G71,"") -> 320
B73: TOTAUX | D73: =SUM(D72,D71) -> 320 | E73: TOTAUX | G73: =SUM(G72,G71) -> 320

Sheet Document 10-1
B2: Opération 10 | C2: Achat de produits d'entretien
B4: Document 10-1 | C4: Facture du fournisseur LAV'ONET
B7: 1. Analyser l’opération suivant une démarche pédagogique choisie (Emploi/Ressource ou Origine/Destination).
B9: Destination/Emploi | F9: Origine/Ressources
B10: Produits d'entretien | D10: Montant | F10: Augmentation des dettes fournisseurs
D11: 1400
B13: 2. Procéder à l’enregistrement comptable correspondant sur bordereau de saisie.
B15: Bordereau de saisie
B16: Dates | C16: Comptes | D16: Intitulés | F16: Débit | G16: Crédit
B17: 2011-06-05 | C17: 6063 | D17: =IF(C17="","",VLOOKUP(C17,Comptes,2,FALSE)) -> Fournitures d'entretien et de petit équipement | F17: 1400
C18: 401 | D18: Fournisseurs | G18: 1400
B21: Totaux | F21: =SUM(F17:F20) -> 1400 | G21: =SUM(G17:G20) -> 1400
B23: 3. Effectuer le report dans les comptes de l’entreprise.
B25: Compte | C25: =C17 -> 6063 | E25: Compte | F25: =C18 -> 401
B26: Débit | C26: Crédit | E26: Débit | F26: Crédit
B27: =F17 -> 1400 | C27: =G17 -> 0 | E27: =F18 -> 0 | F27: =G18 -> 1400
B30: =IF(SUM(B27:B29)-SUM(C27:C29)>0,"Solde Débiteur : ",IF(SUM(B27:B29)-SUM(C27:C29)<0,"Solde créditeur : ","")) -> Solde Débiteur : | C30: =IF((SUM(B27:B29)-SUM(C27:C29))>0,SUM(B27:B29)-SUM(C27:C29),-(SUM(B27:B29)-SUM(C27:C29))) -> 1400 | E30: =IF(SUM(E27:E29)-SUM(F27:F29)>0,"Solde Débiteur : ",IF(SUM(E27:E29)-SUM(F27:F29)<0,"Solde créditeur : ","")) -> Solde créditeur : | F30: =IF((SUM(E27:E29)-SUM(F27:F29))>0,SUM(E27:E29)-SUM(F27:F29),-(SUM(E27:E29)-SUM(F27:F29))) -> 1400
B32: Compte | C32: =C19 -> 0 | E32: Compte | F32: =C20 -> 0
B33: Débit | C33: Crédit | E33: Débit | F33: Crédit
B34: =F19 -> 0 | C34: =G19 -> 0 | E34: =F20 -> 0
B37: =IF(SUM(B34:B36)-SUM(C34:C36)>0,"Solde Débiteur : ",IF(SUM(B34:B36)-SUM(C34:C36)<0,"Solde créditeur : ","")) ->  | C37: =IF((SUM(B33:B36)-SUM(C33:C36))>0,SUM(B33:B36)-SUM(C33:C36),-(SUM(B33:B36)-SUM(C33:C36))) -> 0 | E37: =IF(SUM(E34:E36)-SUM(F34:F36)>0,"Solde Débiteur : ",IF(SUM(E34:E36)-SUM(F34:F36)<0,"Solde créditeur : ","")) ->  | F37: =IF((SUM(E33:E36)-SUM(F33:F36))>0,SUM(E33:E36)-SUM(F33:F36),-(SUM(E33:E36)-SUM(F33:F36))) -> 0
B39: 4. Evaluer les conséquences sur le patrimoine de l’entreprise en présentant son bilan après l'opération.
B41: BILAN
B42: ACTIF | E42: PASSIF
B43: ACTIF IMMOBILISE | D43: =SUM(D45:D47) -> 0 | E43: CAPITAUX PROPRES | G43: =SUM(G45:G46) -> -1400
B45: Immobilisations Incorporelles | E45: Capital
B46: Immobilisations Corporelles | E46: Résultat | G46: =IF(AND(D72="",G72=""),"",IF(D72="",-G72,D72)) -> -1400
B47: Immobilisations Financières
B49: ACTIF CIRCULANT | D49: =SUM(D51:D53) -> 0 | E49: DETTES | G49: =SUM(G51:G52) -> 1400
B51: Stocks | E51: Emprunts
B52: Créances | E52: Fournisseurs | G52: 1400
B53: Disponibilités
B55: TOTAUX | D55: =D43+D49 -> 0 | E55: TOTAUX | G55: =G43+G49 -> 0
B57: 5. Evaluer les conséquences sur l'activité de l’entreprise en présentant son compte de résultat après l'opération.
B59: COMPTE DE RESULTAT
B60: CHARGES | E60: PRODUITS
B61: CHARGES EXPLOITATION | D61: =SUM(D63:D65) -> 1400 | E61: PRODUITS EXPLOITATION | G61: =G63 -> 0
B63: Achats de marchandises | E63: Vente ou prestation de service
B64: Autres charges externes | D64: 1400
B65: Dotations aux amortissements
B67: CHARGES FINANCIERES | E67: PRODUITS FINANCIERS
B70: CHARGES EXCEPTIONNELLES | E70: PRODUITS EXCEPTIONNELS
B71: Sous Total | D71: =D61+D67+D70 -> 1400 | E71: Sous Total | G71: =G61+G67+G70 -> 0
B72: RESULTAT | C72: (Bénéfice) | D72: =IF(G71-D71>0,G71-D71,"") ->  | E72: RESULTAT | F72: (Perte) | G72: =IF(D71-G71>0,D71-G71,"") -> 1400
B73: TOTAUX | D73: =SUM(D72,D71) -> 1400 | E73: TOTAUX | G73: =SUM(G72,G71) -> 1400

Sheet Document 10-2
B2: Opération 10 | C2: Achat de produits d'entretien
B4: Document 10-2 | C4: Chèque n° 005 sur la Banque des Alpes
B7: 1. Analyser l’opération suivant une démarche pédagogique choisie (Emploi/Ressource ou Origine/Destination).
B9: Destination/Emploi | F9: Origine/Ressources
B10: Diminution des dettes fournisseurs | D10: Montant | F10: Diminution de l'avoir en banque
D11: 1400
B13: 2. Procéder à l’enregistrement comptable correspondant sur bordereau de saisie.
B15: Bordereau de saisie
B16: Dates | C16: Comptes | D16: Intitulés | F16: Débit | G16: Crédit
B17: 2011-07-05 | C17: 401 | D17: =IF(C17="","",VLOOKUP(C17,Comptes,2,FALSE)) -> Fournisseurs | F17: 1400
C18: 512 | D18: Banques | G18: 1400
B21: Totaux | F21: =SUM(F17:F20) -> 1400 | G21: =SUM(G17:G20) -> 1400
B23: 3. Effectuer le report dans les comptes de l’entreprise.
B25: Compte | C25: =C17 -> 401 | E25: Compte | F25: =C18 -> 512
B26: Débit | C26: Crédit | E26: Débit | F26: Crédit
B27: =F17 -> 1400 | C27: =G17 -> 0 | E27: =F18 -> 0 | F27: =G18 -> 1400
B30: =IF(SUM(B27:B29)-SUM(C27:C29)>0,"Solde Débiteur : ",IF(SUM(B27:B29)-SUM(C27:C29)<0,"Solde créditeur : ","")) -> Solde Débiteur : | C30: =IF((SUM(B27:B29)-SUM(C27:C29))>0,SUM(B27:B29)-SUM(C27:C29),-(SUM(B27:B29)-SUM(C27:C29))) -> 1400 | E30: =IF(SUM(E27:E29)-SUM(F27:F29)>0,"Solde Débiteur : ",IF(SUM(E27:E29)-SUM(F27:F29)<0,"Solde créditeur : ","")) -> Solde créditeur : | F30: =IF((SUM(E27:E29)-SUM(F27:F29))>0,SUM(E27:E29)-SUM(F27:F29),-(SUM(E27:E29)-SUM(F27:F29))) -> 1400
B32: Compte | C32: =C19 -> 0 | E32: Compte | F32: =C20 -> 0
B33: Débit | C33: Crédit | E33: Débit | F33: Crédit
B34: =F19 -> 0 | C34: =G19 -> 0 | E34: =F20 -> 0
B37: =IF(SUM(B34:B36)-SUM(C34:C36)>0,"Solde Débiteur : ",IF(SUM(B34:B36)-SUM(C34:C36)<0,"Solde créditeur : ","")) ->  | C37: =IF((SUM(B33:B36)-SUM(C33:C36))>0,SUM(B33:B36)-SUM(C33:C36),-(SUM(B33:B36)-SUM(C33:C36))) -> 0 | E37: =IF(SUM(E34:E36)-SUM(F34:F36)>0,"Solde Débiteur : ",IF(SUM(E34:E36)-SUM(F34:F36)<0,"Solde créditeur : ","")) ->  | F37: =IF((SUM(E33:E36)-SUM(F33:F36))>0,SUM(E33:E36)-SUM(F33:F36),-(SUM(E33:E36)-SUM(F33:F36))) -> 0
B39: 4. Evaluer les conséquences sur le patrimoine de l’entreprise en présentant son bilan après l'opération.
B41: BILAN
B42: ACTIF | E42: PASSIF
B43: ACTIF IMMOBILISE | D43: =SUM(D45:D47) -> 0 | E43: CAPITAUX PROPRES | G43: =SUM(G45:G46) -> 0
B45: Immobilisations Incorporelles | E45: Capital
B46: Immobilisations Corporelles | E46: Résultat | G46: =IF(AND(D72="",G72=""),"",IF(D72="",-G72,D72)) -> 
B47: Immobilisations Financières
B49: ACTIF CIRCULANT | D49: =SUM(D51:D53) -> -1400 | E49: DETTES | G49: =SUM(G51:G52) -> -1400
B51: Stocks | E51: Emprunts
B52: Créances | E52: Fournisseurs | G52: -1400
B53: Disponibilités | D53: -1400
B55: TOTAUX | D55: =D43+D49 -> -1400 | E55: TOTAUX | G55: =G43+G49 -> -1400
B57: 5. Evaluer les conséquences sur l'activité de l’entreprise en présentant son compte de résultat après l'opération.
B59: COMPTE DE RESULTAT
B60: CHARGES | E60: PRODUITS
B61: CHARGES EXPLOITATION | D61: =SUM(D63:D65) -> 0 | E61: PRODUITS EXPLOITATION | G61: =G63 -> 0
B63: Achats de marchandises | E63: Vente ou prestation de service
B64: Autres charges externes
B65: Dotations aux amortissements
B67: CHARGES FINANCIERES | E67: PRODUITS FINANCIERS
B70: CHARGES EXCEPTIONNELLES | E70: PRODUITS EXCEPTIONNELS
B71: Sous Total | D71: =D61+D67+D70 -> 0 | E71: Sous Total | G71: =G61+G67+G70 -> 0
B72: RESULTAT | C72: (Bénéfice) | D72: =IF(G71-D71>0,G71-D71,"") ->  | E72: RESULTAT | F72: (Perte) | G72: =IF(D71-G71>0,D71-G71,"") -> 
B73: TOTAUX | D73: =SUM(D72,D71) -> 0 | E73: TOTAUX | G73: =SUM(G72,G71) -> 0

Sheet Document 11
B2: Opération 11 | C2: Recettes du mois de Juin
B4: Document 11 | C4: Facturettes - Bordereau de recettes
B7: 1. Analyser l’opération suivant une démarche pédagogique choisie (Emploi/Ressource ou Origine/Destination).
B9: Destination/Emploi | F9: Origine/Ressources
B10: Augmentation de l'avoir en banque Augmentation de l'avoir en caisse | D10: Montant | F10: Prestations de services
D11: 3150
B13: 2. Procéder à l’enregistrement comptable correspondant sur bordereau de saisie.
B15: Bordereau de saisie
B16: Dates | C16: Comptes | D16: Intitulés | F16: Débit | G16: Crédit
B17: 2011-06-30 | C17: 512 | D17: =IF(C17="","",VLOOKUP(C17,Comptes,2,FALSE)) -> Banques | F17: 2900
C18: 530 | D18: Caisse | F18: 250
C19: 706 | D19: Prestations de services | G19: 3150
B21: Totaux | F21: =SUM(F17:F20) -> 3150 | G21: =SUM(G17:G20) -> 3150
B23: 3. Effectuer le report dans les comptes de l’entreprise.
B25: Compte | C25: =C17 -> 512 | E25: Compte | F25: =C18 -> 530
B26: Débit | C26: Crédit | E26: Débit | F26: Crédit
B27: =F17 -> 2900 | C27: =G17 -> 0 | E27: =F18 -> 250 | F27: =G18 -> 0
B30: =IF(SUM(B27:B29)-SUM(C27:C29)>0,"Solde Débiteur : ",IF(SUM(B27:B29)-SUM(C27:C29)<0,"Solde créditeur : ","")) -> Solde Débiteur : | C30: =IF((SUM(B27:B29)-SUM(C27:C29))>0,SUM(B27:B29)-SUM(C27:C29),-(SUM(B27:B29)-SUM(C27:C29))) -> 2900 | E30: =IF(SUM(E27:E29)-SUM(F27:F29)>0,"Solde Débiteur : ",IF(SUM(E27:E29)-SUM(F27:F29)<0,"Solde créditeur : ","")) -> Solde Débiteur : | F30: =IF((SUM(E27:E29)-SUM(F27:F29))>0,SUM(E27:E29)-SUM(F27:F29),-(SUM(E27:E29)-SUM(F27:F29))) -> 250
B32: Compte | C32: =C19 -> 706 | E32: Compte | F32: =C20 -> 0
B33: Débit | C33: Crédit | E33: Débit | F33: Crédit
B34: =F19 -> 0 | C34: =G19 -> 3150 | E34: =F20 -> 0
B37: =IF(SUM(B34:B36)-SUM(C34:C36)>0,"Solde Débiteur : ",IF(SUM(B34:B36)-SUM(C34:C36)<0,"Solde créditeur : ","")) -> Solde créditeur : | C37: =IF((SUM(B33:B36)-SUM(C33:C36))>0,SUM(B33:B36)-SUM(C33:C36),-(SUM(B33:B36)-SUM(C33:C36))) -> 3150 | E37: =IF(SUM(E34:E36)-SUM(F34:F36)>0,"Solde Débiteur : ",IF(SUM(E34:E36)-SUM(F34:F36)<0,"Solde créditeur : ","")) ->  | F37: =IF((SUM(E33:E36)-SUM(F33:F36))>0,SUM(E33:E36)-SUM(F33:F36),-(SUM(E33:E36)-SUM(F33:F36))) -> 0
B39: 4. Evaluer les conséquences sur le patrimoine de l’entreprise en présentant son bilan après l'opération.
B41: BILAN
B42: ACTIF | E42: PASSIF
B43: ACTIF IMMOBILISE | D43: =SUM(D45:D47) -> 0 | E43: CAPITAUX PROPRES | G43: =SUM(G45:G46) -> 3150
B45: Immobilisations Incorporelles | E45: Capital
B46: Immobilisations Corporelles | E46: Résultat | G46: =IF(AND(D72="",G72=""),"",IF(D72="",-G72,D72)) -> 3150
B47: Immobilisations Financières
B49: ACTIF CIRCULANT | D49: =SUM(D51:D53) -> 3150 | E49: DETTES | G49: =SUM(G51:G52) -> 0
B51: Stocks | E51: Emprunts
B52: Créances | E52: Fournisseurs
B53: Disponibilités | D53: 3150
B55: TOTAUX | D55: =D43+D49 -> 3150 | E55: TOTAUX | G55: =G43+G49 -> 3150
B57: 5. Evaluer les conséquences sur l'activité de l’entreprise en présentant son compte de résultat après l'opération.
B59: COMPTE DE RESULTAT
B60: CHARGES | E60: PRODUITS
B61: CHARGES EXPLOITATION | D61: =SUM(D63:D65) -> 0 | E61: PRODUITS EXPLOITATION | G61: =G63 -> 3150
B63: Achats de marchandises | E63: Vente ou prestation de service | G63: 3150
B64: Autres charges externes
B65: Dotations aux amortissements
B67: CHARGES FINANCIERES | E67: PRODUITS FINANCIERS
B70: CHARGES EXCEPTIONNELLES | E70: PRODUITS EXCEPTIONNELS
B71: Sous Total | D71: =D61+D67+D70 -> 0 | E71: Sous Total | G71: =G61+G67+G70 -> 3150
B72: RESULTAT | C72: (Bénéfice) | D72: =IF(G71-D71>0,G71-D71,"") -> 3150 | E72: RESULTAT | F72: (Perte) | G72: =IF(D71-G71>0,D71-G71,"") -> 
B73: TOTAUX | D73: =SUM(D72,D71) -> 3150 | E73: TOTAUX | G73: =SUM(G72,G71) -> 3150

Sheet Document 12
B2: Opération 12 | C2: Recettes du mois de Juin
B4: Document 12 | C4: Facturettes - Bordereau de recettes
B7: 1. Analyser l’opération suivant une démarche pédagogique choisie (Emploi/Ressource ou Origine/Destination).
B9: Destination/Emploi | F9: Origine/Ressources
B10: Augmentation de l'avoir en banque Augmentation de l'avoir en caisse | D10: Montant | F10: Prestations de services
D11: 4840
B13: 2. Procéder à l’enregistrement comptable correspondant sur bordereau de saisie.
B15: Bordereau de saisie
B16: Dates | C16: Comptes | D16: Intitulés | F16: Débit | G16: Crédit
B17: 2011-07-31 | C17: 512 | D17: =IF(C17="","",VLOOKUP(C17,Comptes,2,FALSE)) -> Banques | F17: 4400
C18: 530 | D18: Caisse | F18: 440
C19: 706 | D19: Prestations de services | G19: 4840
B21: Totaux | F21: =SUM(F17:F20) -> 4840 | G21: =SUM(G17:G20) -> 4840
B23: 3. Effectuer le report dans les comptes de l’entreprise.
B25: Compte | C25: =C17 -> 512 | E25: Compte | F25: =C18 -> 530
B26: Débit | C26: Crédit | E26: Débit | F26: Crédit
B27: =F17 -> 4400 | C27: =G17 -> 0 | E27: =F18 -> 440 | F27: =G18 -> 0
B30: =IF(SUM(B27:B29)-SUM(C27:C29)>0,"Solde Débiteur : ",IF(SUM(B27:B29)-SUM(C27:C29)<0,"Solde créditeur : ","")) -> Solde Débiteur : | C30: =IF((SUM(B27:B29)-SUM(C27:C29))>0,SUM(B27:B29)-SUM(C27:C29),-(SUM(B27:B29)-SUM(C27:C29))) -> 4400 | E30: =IF(SUM(E27:E29)-SUM(F27:F29)>0,"Solde Débiteur : ",IF(SUM(E27:E29)-SUM(F27:F29)<0,"Solde créditeur : ","")) -> Solde Débiteur : | F30: =IF((SUM(E27:E29)-SUM(F27:F29))>0,SUM(E27:E29)-SUM(F27:F29),-(SUM(E27:E29)-SUM(F27:F29))) -> 440
B32: Compte | C32: =C19 -> 706 | E32: Compte | F32: =C20 -> 0
B33: Débit | C33: Crédit | E33: Débit | F33: Crédit
B34: =F19 -> 0 | C34: =G19 -> 4840 | E34: =F20 -> 0
B37: =IF(SUM(B34:B36)-SUM(C34:C36)>0,"Solde Débiteur : ",IF(SUM(B34:B36)-SUM(C34:C36)<0,"Solde créditeur : ","")) -> Solde créditeur : | C37: =IF((SUM(B33:B36)-SUM(C33:C36))>0,SUM(B33:B36)-SUM(C33:C36),-(SUM(B33:B36)-SUM(C33:C36))) -> 4840 | E37: =IF(SUM(E34:E36)-SUM(F34:F36)>0,"Solde Débiteur : ",IF(SUM(E34:E36)-SUM(F34:F36)<0,"Solde créditeur : ","")) ->  | F37: =IF((SUM(E33:E36)-SUM(F33:F36))>0,SUM(E33:E36)-SUM(F33:F36),-(SUM(E33:E36)-SUM(F33:F36))) -> 0
B39: 4. Evaluer les conséquences sur le patrimoine de l’entreprise en présentant son bilan après l'opération.
B41: BILAN
B42: ACTIF | E42: PASSIF
B43: ACTIF IMMOBILISE | D43: =SUM(D45:D47) -> 0 | E43: CAPITAUX PROPRES | G43: =SUM(G45:G46) -> 4840
B45: Immobilisations Incorporelles | E45: Capital
B46: Immobilisations Corporelles | E46: Résultat | G46: =IF(AND(D72="",G72=""),"",IF(D72="",-G72,D72)) -> 4840
B47: Immobilisations Financières
B49: ACTIF CIRCULANT | D49: =SUM(D51:D53) -> 4840 | E49: DETTES | G49: =SUM(G51:G52) -> 0
B51: Stocks | E51: Emprunts
B52: Créances | E52: Fournisseurs
B53: Disponibilités | D53: 4840
B55: TOTAUX | D55: =D43+D49 -> 4840 | E55: TOTAUX | G55: =G43+G49 -> 4840
B57: 5. Evaluer les conséquences sur l'activité de l’entreprise en présentant son compte de résultat après l'opération.
B59: COMPTE DE RESULTAT
B60: CHARGES | E60: PRODUITS
B61: CHARGES EXPLOITATION | D61: =SUM(D63:D65) -> 0 | E61: PRODUITS EXPLOITATION | G61: =G63 -> 4840
B63: Achats de marchandises | E63: Vente ou prestation de service | G63: 4840
B64: Autres charges externes
B65: Dotations aux amortissements
B67: CHARGES FINANCIERES | E67: PRODUITS FINANCIERS
B70: CHARGES EXCEPTIONNELLES | E70: PRODUITS EXCEPTIONNELS
B71: Sous Total | D71: =D61+D67+D70 -> 0 | E71: Sous Total | G71: =G61+G67+G70 -> 4840
B72: RESULTAT | C72: (Bénéfice) | D72: =IF(G71-D71>0,G71-D71,"") -> 4840 | E72: RESULTAT | F72: (Perte) | G72: =IF(D71-G71>0,D71-G71,"") -> 
B73: TOTAUX | D73: =SUM(D72,D71) -> 4840 | E73: TOTAUX | G73: =SUM(G72,G71) -> 4840

Sheet Document 13
B2: Opération 13 | C2: Achat de produits d'entretien
B4: Document 13 | C4: Facture du fournisseur LAV'ONET
B7: 1. Analyser l’opération suivant une démarche pédagogique choisie (Emploi/Ressource ou Origine/Destination).
B9: Destination/Emploi | F9: Origine/Ressources
B10: Produits d'entretien | D10: Montant | F10: Augmentation des dettes fournisseurs
D11: 740
B13: 2. Procéder à l’enregistrement comptable correspondant sur bordereau de saisie.
B15: Bordereau de saisie
B16: Dates | C16: Comptes | D16: Intitulés | F16: Débit | G16: Crédit
B17: 2011-08-10 | C17: 6063 | D17: =IF(C17="","",VLOOKUP(C17,Comptes,2,FALSE)) -> Fournitures d'entretien et de petit équipement | F17: 740
C18: 401 | D18: Fournisseurs | G18: 740
B21: Totaux | F21: =SUM(F17:F20) -> 740 | G21: =SUM(G17:G20) -> 740
B23: 3. Effectuer le report dans les comptes de l’entreprise.
B25: Compte | C25: =C17 -> 6063 | E25: Compte | F25: =C18 -> 401
B26: Débit | C26: Crédit | E26: Débit | F26: Crédit
B27: =F17 -> 740 | C27: =G17 -> 0 | E27: =F18 -> 0 | F27: =G18 -> 740
B30: =IF(SUM(B27:B29)-SUM(C27:C29)>0,"Solde Débiteur : ",IF(SUM(B27:B29)-SUM(C27:C29)<0,"Solde créditeur : ","")) -> Solde Débiteur : | C30: =IF((SUM(B27:B29)-SUM(C27:C29))>0,SUM(B27:B29)-SUM(C27:C29),-(SUM(B27:B29)-SUM(C27:C29))) -> 740 | E30: =IF(SUM(E27:E29)-SUM(F27:F29)>0,"Solde Débiteur : ",IF(SUM(E27:E29)-SUM(F27:F29)<0,"Solde créditeur : ","")) -> Solde créditeur : | F30: =IF((SUM(E27:E29)-SUM(F27:F29))>0,SUM(E27:E29)-SUM(F27:F29),-(SUM(E27:E29)-SUM(F27:F29))) -> 740
B32: Compte | C32: =C19 -> 0 | E32: Compte | F32: =C20 -> 0
B33: Débit | C33: Crédit | E33: Débit | F33: Crédit
B34: =F19 -> 0 | C34: =G19 -> 0 | E34: =F20 -> 0
B37: =IF(SUM(B34:B36)-SUM(C34:C36)>0,"Solde Débiteur : ",IF(SUM(B34:B36)-SUM(C34:C36)<0,"Solde créditeur : ","")) ->  | C37: =IF((SUM(B33:B36)-SUM(C33:C36))>0,SUM(B33:B36)-SUM(C33:C36),-(SUM(B33:B36)-SUM(C33:C36))) -> 0 | E37: =IF(SUM(E34:E36)-SUM(F34:F36)>0,"Solde Débiteur : ",IF(SUM(E34:E36)-SUM(F34:F36)<0,"Solde créditeur : ","")) ->  | F37: =IF((SUM(E33:E36)-SUM(F33:F36))>0,SUM(E33:E36)-SUM(F33:F36),-(SUM(E33:E36)-SUM(F33:F36))) -> 0
B39: 4. Evaluer les conséquences sur le patrimoine de l’entreprise en présentant son bilan après l'opération.
B41: BILAN
B42: ACTIF | E42: PASSIF
B43: ACTIF IMMOBILISE | D43: =SUM(D45:D47) -> 0 | E43: CAPITAUX PROPRES | G43: =SUM(G45:G46) -> -740
B45: Immobilisations Incorporelles | E45: Capital
B46: Immobilisations Corporelles | E46: Résultat | G46: =IF(AND(D72="",G72=""),"",IF(D72="",-G72,D72)) -> -740
B47: Immobilisations Financières
B49: ACTIF CIRCULANT | D49: =SUM(D51:D53) -> 0 | E49: DETTES | G49: =SUM(G51:G52) -> 740
B51: Stocks | E51: Emprunts
B52: Créances | E52: Fournisseurs | G52: 740
B53: Disponibilités
B55: TOTAUX | D55: =D43+D49 -> 0 | E55: TOTAUX | G55: =G43+G49 -> 0
B57: 5. Evaluer les conséquences sur l'activité de l’entreprise en présentant son compte de résultat après l'opération.
B59: COMPTE DE RESULTAT
B60: CHARGES | E60: PRODUITS
B61: CHARGES EXPLOITATION | D61: =SUM(D63:D65) -> 740 | E61: PRODUITS EXPLOITATION | G61: =G63 -> 0
B63: Achats de marchandises | E63: Vente ou prestation de service
B64: Autres charges externes | D64: 740
B65: Dotations aux amortissements
B67: CHARGES FINANCIERES | E67: PRODUITS FINANCIERS
B70: CHARGES EXCEPTIONNELLES | E70: PRODUITS EXCEPTIONNELS
B71: Sous Total | D71: =D61+D67+D70 -> 740 | E71: Sous Total | G71: =G61+G67+G70 -> 0
B72: RESULTAT | C72: (Bénéfice) | D72: =IF(G71-D71>0,G71-D71,"") ->  | E72: RESULTAT | F72: (Perte) | G72: =IF(D71-G71>0,D71-G71,"") -> 740
B73: TOTAUX | D73: =SUM(D72,D71) -> 740 | E73: TOTAUX | G73: =SUM(G72,G71) -> 740

Sheet Document 14
B2: Opération 14 | C2: Recettes du mois de Juin
B4: Document 14 | C4: Facturettes - Bordereau de recettes
B7: 1. Analyser l’opération suivant une démarche pédagogique choisie (Emploi/Ressource ou Origine/Destination).
B9: Destination/Emploi | F9: Origine/Ressources
B10: Augmentation de l'avoir en banque Augmentation de l'avoir en caisse | D10: Montant | F10: Prestations de services
D11: 7670
B13: 2. Procéder à l’enregistrement comptable correspondant sur bordereau de saisie.
B15: Bordereau de saisie
B16: Dates | C16: Comptes | D16: Intitulés | F16: Débit | G16: Crédit
B17: 2011-08-31 | C17: 512 | D17: =IF(C17="","",VLOOKUP(C17,Comptes,2,FALSE)) -> Banques | F17: 7010
C18: 530 | D18: Caisse | F18: 660
C19: 706 | D19: Prestations de services | G19: 7670
B21: Totaux | F21: =SUM(F17:F20) -> 7670 | G21: =SUM(G17:G20) -> 7670
B23: 3. Effectuer le report dans les comptes de l’entreprise.
B25: Compte | C25: =C17 -> 512 | E25: Compte | F25: =C18 -> 530
B26: Débit | C26: Crédit | E26: Débit | F26: Crédit
B27: =F17 -> 7010 | C27: =G17 -> 0 | E27: =F18 -> 660 | F27: =G18 -> 0
B30: =IF(SUM(B27:B29)-SUM(C27:C29)>0,"Solde Débiteur : ",IF(SUM(B27:B29)-SUM(C27:C29)<0,"Solde créditeur : ","")) -> Solde Débiteur : | C30: =IF((SUM(B27:B29)-SUM(C27:C29))>0,SUM(B27:B29)-SUM(C27:C29),-(SUM(B27:B29)-SUM(C27:C29))) -> 7010 | E30: =IF(SUM(E27:E29)-SUM(F27:F29)>0,"Solde Débiteur : ",IF(SUM(E27:E29)-SUM(F27:F29)<0,"Solde créditeur : ","")) -> Solde Débiteur : | F30: =IF((SUM(E27:E29)-SUM(F27:F29))>0,SUM(E27:E29)-SUM(F27:F29),-(SUM(E27:E29)-SUM(F27:F29))) -> 660
B32: Compte | C32: =C19 -> 706 | E32: Compte | F32: =C20 -> 0
B33: Débit | C33: Crédit | E33: Débit | F33: Crédit
B34: =F19 -> 0 | C34: =G19 -> 7670 | E34: =F20 -> 0
B37: =IF(SUM(B34:B36)-SUM(C34:C36)>0,"Solde Débiteur : ",IF(SUM(B34:B36)-SUM(C34:C36)<0,"Solde créditeur : ","")) -> Solde créditeur : | C37: =IF((SUM(B33:B36)-SUM(C33:C36))>0,SUM(B33:B36)-SUM(C33:C36),-(SUM(B33:B36)-SUM(C33:C36))) -> 7670 | E37: =IF(SUM(E34:E36)-SUM(F34:F36)>0,"Solde Débiteur : ",IF(SUM(E34:E36)-SUM(F34:F36)<0,"Solde créditeur : ","")) ->  | F37: =IF((SUM(E33:E36)-SUM(F33:F36))>0,SUM(E33:E36)-SUM(F33:F36),-(SUM(E33:E36)-SUM(F33:F36))) -> 0
B39: 4. Evaluer les conséquences sur le patrimoine de l’entreprise en présentant son bilan après l'opération.
B41: BILAN
B42: ACTIF | E42: PASSIF
B43: ACTIF IMMOBILISE | D43: =SUM(D45:D47) -> 0 | E43: CAPITAUX PROPRES | G43: =SUM(G45:G46) -> 7670
B45: Immobilisations Incorporelles | E45: Capital
B46: Immobilisations Corporelles | E46: Résultat | G46: =IF(AND(D72="",G72=""),"",IF(D72="",-G72,D72)) -> 7670
B47: Immobilisations Financières
B49: ACTIF CIRCULANT | D49: =SUM(D51:D53) -> 7670 | E49: DETTES | G49: =SUM(G51:G52) -> 0
B51: Stocks | E51: Emprunts
B52: Créances | E52: Fournisseurs
B53: Disponibilités | D53: 7670
B55: TOTAUX | D55: =D43+D49 -> 7670 | E55: TOTAUX | G55: =G43+G49 -> 7670
B57: 5. Evaluer les conséquences sur l'activité de l’entreprise en présentant son compte de résultat après l'opération.
B59: COMPTE DE RESULTAT
B60: CHARGES | E60: PRODUITS
B61: CHARGES EXPLOITATION | D61: =SUM(D63:D65) -> 0 | E61: PRODUITS EXPLOITATION | G61: =G63 -> 7670
B63: Achats de marchandises | E63: Vente ou prestation de service | G63: 7670
B64: Autres charges externes
B65: Dotations aux amortissements
B67: CHARGES FINANCIERES | E67: PRODUITS FINANCIERS
B70: CHARGES EXCEPTIONNELLES | E70: PRODUITS EXCEPTIONNELS
B71: Sous Total | D71: =D61+D67+D70 -> 0 | E71: Sous Total | G71: =G61+G67+G70 -> 7670
B72: RESULTAT | C72: (Bénéfice) | D72: =IF(G71-D71>0,G71-D71,"") -> 7670 | E72: RESULTAT | F72: (Perte) | G72: =IF(D71-G71>0,D71-G71,"") -> 
B73: TOTAUX | D73: =SUM(D72,D71) -> 7670 | E73: TOTAUX | G73: =SUM(G72,G71) -> 7670

Sheet Document 15
B2: Opération 15 | C2: Consommation d'eau
B4: Document 15 | C4: Facture du fournisseur LEOVIA
B7: 1. Analyser l’opération suivant une démarche pédagogique choisie (Emploi/Ressource ou Origine/Destination).
B9: Destination/Emploi | F9: Origine/Ressources
B10: Consommation d'eau | D10: Montant | F10: Augmentation des dettes fournisseurs
D11: 1700
B13: 2. Procéder à l’enregistrement comptable correspondant sur bordereau de saisie.
B15: Bordereau de saisie
B16: Dates | C16: Comptes | D16: Intitulés | F16: Débit | G16: Crédit
B17: 2011-09-10 | C17: 6061 | D17: =IF(C17="","",VLOOKUP(C17,Comptes,2,FALSE)) -> Fournitures non stockables (eau, énergie…) | F17: 1700
C18: 401 | D18: Fournisseurs | G18: 1700
B21: Totaux | F21: =SUM(F17:F20) -> 1700 | G21: =SUM(G17:G20) -> 1700
B23: 3. Effectuer le report dans les comptes de l’entreprise.
B25: Compte | C25: =C17 -> 6061 | E25: Compte | F25: =C18 -> 401
B26: Débit | C26: Crédit | E26: Débit | F26: Crédit
B27: =F17 -> 1700 | C27: =G17 -> 0 | E27: =F18 -> 0 | F27: =G18 -> 1700
B30: =IF(SUM(B27:B29)-SUM(C27:C29)>0,"Solde Débiteur : ",IF(SUM(B27:B29)-SUM(C27:C29)<0,"Solde créditeur : ","")) -> Solde Débiteur : | C30: =IF((SUM(B27:B29)-SUM(C27:C29))>0,SUM(B27:B29)-SUM(C27:C29),-(SUM(B27:B29)-SUM(C27:C29))) -> 1700 | E30: =IF(SUM(E27:E29)-SUM(F27:F29)>0,"Solde Débiteur : ",IF(SUM(E27:E29)-SUM(F27:F29)<0,"Solde créditeur : ","")) -> Solde créditeur : | F30: =IF((SUM(E27:E29)-SUM(F27:F29))>0,SUM(E27:E29)-SUM(F27:F29),-(SUM(E27:E29)-SUM(F27:F29))) -> 1700
B32: Compte | C32: =C19 -> 0 | E32: Compte | F32: =C20 -> 0
B33: Débit | C33: Crédit | E33: Débit | F33: Crédit
B34: =F19 -> 0 | C34: =G19 -> 0 | E34: =F20 -> 0
B37: =IF(SUM(B34:B36)-SUM(C34:C36)>0,"Solde Débiteur : ",IF(SUM(B34:B36)-SUM(C34:C36)<0,"Solde créditeur : ","")) ->  | C37: =IF((SUM(B33:B36)-SUM(C33:C36))>0,SUM(B33:B36)-SUM(C33:C36),-(SUM(B33:B36)-SUM(C33:C36))) -> 0 | E37: =IF(SUM(E34:E36)-SUM(F34:F36)>0,"Solde Débiteur : ",IF(SUM(E34:E36)-SUM(F34:F36)<0,"Solde créditeur : ","")) ->  | F37: =IF((SUM(E33:E36)-SUM(F33:F36))>0,SUM(E33:E36)-SUM(F33:F36),-(SUM(E33:E36)-SUM(F33:F36))) -> 0
B39: 4. Evaluer les conséquences sur le patrimoine de l’entreprise en présentant son bilan après l'opération.
B41: BILAN
B42: ACTIF | E42: PASSIF
B43: ACTIF IMMOBILISE | D43: =SUM(D45:D47) -> 0 | E43: CAPITAUX PROPRES | G43: =SUM(G45:G46) -> -1700
B45: Immobilisations Incorporelles | E45: Capital
B46: Immobilisations Corporelles | E46: Résultat | G46: =IF(AND(D72="",G72=""),"",IF(D72="",-G72,D72)) -> -1700
B47: Immobilisations Financières
B49: ACTIF CIRCULANT | D49: =SUM(D51:D53) -> 0 | E49: DETTES | G49: =SUM(G51:G52) -> 1700
B51: Stocks | E51: Emprunts
B52: Créances | E52: Fournisseurs | G52: 1700
B53: Disponibilités
B55: TOTAUX | D55: =D43+D49 -> 0 | E55: TOTAUX | G55: =G43+G49 -> 0
B57: 5. Evaluer les conséquences sur l'activité de l’entreprise en présentant son compte de résultat après l'opération.
B59: COMPTE DE RESULTAT
B60: CHARGES | E60: PRODUITS
B61: CHARGES EXPLOITATION | D61: =SUM(D63:D65) -> 1700 | E61: PRODUITS EXPLOITATION | G61: =G63 -> 0
B63: Achats de marchandises | E63: Vente ou prestation de service
B64: Autres charges externes | D64: 1700
B65: Dotations aux amortissements
B67: CHARGES FINANCIERES | E67: PRODUITS FINANCIERS
B70: CHARGES EXCEPTIONNELLES | E70: PRODUITS EXCEPTIONNELS
B71: Sous Total | D71: =D61+D67+D70 -> 1700 | E71: Sous Total | G71: =G61+G67+G70 -> 0
B72: RESULTAT | C72: (Bénéfice) | D72: =IF(G71-D71>0,G71-D71,"") ->  | E72: RESULTAT | F72: (Perte) | G72: =IF(D71-G71>0,D71-G71,"") -> 1700
B73: TOTAUX | D73: =SUM(D72,D71) -> 1700 | E73: TOTAUX | G73: =SUM(G72,G71) -> 1700

Sheet Plan comptable (hidden)
A1: 1 | B1: COMPTES DE CAPITAUX
A2: 10 | B2: CAPITAL ET RESERVES
A3: 101 | B3: Capital
A4: 1011 | B4: Capital souscrit - non appelé
A5: 1012 | B5: Capital souscrit - appelé, non versé
A6: 1013 | B6: Capital souscrit - appelé, versé
A7: 10131 | B7: Capital non amorti
A8: 10132 | B8: Capital amorti
A9: 1018 | B9: Capital souscrit soumis à des réglementations particulières
A10: 104 | B10: Primes liées au capital social
A11: 1041 | B11: Primes d'émission
A12: 1042 | B12: Primes de fusion
A13: 1043 | B13: Primes d'apport
A14: 1044 | B14: Primes de conversion d'obligations en actions
A15: 1045 | B15: Bons de souscription d'actions
A16: 105 | B16: Ecarts de réévaluation
A17: 1051 | B17: Réserve spéciale de réévaluation
A18: 1052 | B18: Ecart de réévaluation libre
A19: 1053 | B19: Réserve de réévaluation
A20: 1055 | B20: Ecarts de réévaluation (autres opérations légales)
A21: 1057 | B21: Autres écarts de réévaluation en France
A22: 1058 | B22: Autres écarts de réévaluation à l'étranger
A23: 106 | B23: Réserves
A24: 1061 | B24: Réserve légale
A25: 10611 | B25: Réserve légale proprement dite
A26: 10612 | B26: Plus-values nettes à long terme
A27: 1062 | B27: Réserves indisponibles
A28: 1063 | B28: Réserves statutaires ou contractuelles
A29: 1064 | B29: Réserves réglementées
A30: 10641 | B30: Plus-values nettes à long terme
A31: 10642 | B31: Réserves consécutives à l'octroi de subventions d'investissement
A32: 10648 | B32: Autres réserves réglementées
A33: 1068 | B33: Autres réserves
A34: 10681 | B34: Réserve de propre assureur
A35: 10682 | B35: Réserves diverses
A36: 107 | B36: Ecarts d'équivalence
A37: 108 | B37: Compte de l'exploitatant
A38: 109 | B38: Actionnaires : capital souscrit - non appelé
A39: 11 | B39: REPORT A NOUVEAU (solde créditeur ou débiteur)
A40: 110 | B40: Report à nouveau (solde créditeur)
A41: 119 | B41: Report à nouveau (solde débiteur)
A42: 12 | B42: RESULTAT DE L'EXERCICE (bénéfice ou perte)
A43: 120 | B43: Résultat de l'exercice (bénéfice)
A44: 129 | B44: Résultat de l'exercice (perte)
A45: 13 | B45: SUBVENTION D'INVESTISSEMENT
A46: 131 | B46: Subventions d'équipement
A47: 1311 | B47: Etat
A48: 1312 | B48: Régions
A49: 1313 | B49: Départements
A50: 1314 | B50: Communes
A51: 1315 | B51: Collectivités publiques
A52: 1316 | B52: Entreprises publiques
A53: 1317 | B53: Entreprises et organismes privés
A54: 1318 | B54: Autres
A55: 138 | B55: Autres subventions d'investissement
A56: 139 | B56: Subventions d'investissement inscrites au compte de résultat
A57: 1391 | B57: Subventions d'équipement
A58: 13911 | B58: Etat
A59: 13912 | B59: Régions
A60: 13913 | B60: Départements
A61: 13914 | B61: Communes
A62: 13915 | B62: Collectivités publiques
A63: 13916 | B63: Entreprises publiques
A64: 13917 | B64: Entreprises et organismes privés
A65: 13918 | B65: Autres
A66: 1398 | B66: Autres subventions d'investissement
A67: 14 | B67: PROVISIONS REGLEMENTEES
A68: 142 | B68: Provisions réglementées relatives aux immobilisations
A69: 1423 | B69: Provisions pour reconstitution des gisement miniers et pétroliers
A70: 1424 | B70: Provisions pour investissement (participation des salariés)
A71: 143 | B71: Provisions réglementées relatives aux stocks
A72: 1431 | B72: Hausse des prix
A73: 1432 | B73: Fluctuation des cours
A74: 144 | B74: Provisions réglementées relatives aux autres éléments de l'actif
A75: 145 | B75: Amortissements dérogatoires
A76: 146 | B76: Provision spéciale de réévaluation
A77: 147 | B77: Plus-values réinvesties
A78: 148 | B78: Autres provisions réglementées
A79: 15 | B79: PROVISIONS POUR RISQUES ET CHARGES
A80: 151 | B80: Provisions pour risques
A81: 1511 | B81: Provisions pour litiges
A82: 1512 | B82: Provisions pour garanties données aux clients
A83: 1513 | B83: Provisions pour pertes sur marchés à terme
A84: 1514 | B84: Provisions pour amendes et pénalités
A85: 1515 | B85: Provisions pour pertes de change
A86: 1516 | B86: Provisions pour pertes sur contrats
A87: 1518 | B87: Autres provisions pour risques
A88: 153 | B88: Provisions pour pensions et obligations similaires
A89: 154 | B89: Provisions pour restructurations
A90: 155 | B90: Provisions pour impôts
A91: 156 | B91: Provisions pour renouvellement des immobilisations
A92: 157 | B92: Provisions pour charges à répartir sur plusieurs exercices
A93: 1572 | B93: Provisions pour gros entretien ou grandes révisions
A94: 158 | B94: Autres provisions pour charges
A95: 1581 | B95: Provisions pour remises en état
A96: 16 | B96: EMPRUNTS ET DETTES ASSIMILEES
A97: 161 | B97: Emprunts obligataires convertibles
A98: 163 | B98: Autres emprunts obligataires
A99: 164 | B99: Emprunts auprès des établissements de crédit
A100: 165 | B100: Dépôts et cautionnements reçus
A101: 1651 | B101: Dépôts
A102: 1655 | B102: Cautionnements
A103: 166 | B103: Participation des salariés aux résultats
A104: 1661 | B104: Comptes bloqués
A105: 1662 | B105: Fonds de participation
A106: 167 | B106: Emprunts et dettes assortis de conditions particulières
A107: 1671 | B107: Emissions de titres participatifs
A108: 1674 | B108: Avances conditionnées de l'Etat
A109: 1675 | B109: Emprunts participatifs
A110: 168 | B110: Autres emprunts et dettes assimilées
A111: 1681 | B111: Autres emprunts
A112: 1685 | B112: Rentes viagères capitalisées
A113: 1687 | B113: Autres dettes
A114: 16881 | B114: Sur emprunts obligataires convertibles
A115: 16883 | B115: Sur autres emprunts obligataires
A116: 16884 | B116: Sur emprunts auprès des établissements de crédit
A117: 16885 | B117: Sur dépôts et cautionnements reçus
A118: 16886 | B118: Sur participation des salariés aux résultats
A119: 16887 | B119: Sur emprunts et dettes assortis de conditions particulières
A120: 16888 | B120: Sur autres emprunts et dettes assimilées
A121: 169 | B121: Primes de remboursement des obligations
A122: 17 | B122: DETTES RATTACHEES A DES PARTICIPATIONS
A123: 171 | B123: Dettes rattachées à des participations (groupes)
A124: 174 | B124: Dettes rattachées à des participations (hors groupes)
A125: 178 | B125: Dettes rattachées à des sociétés en participation
A126: 1781 | B126: Principal
A127: 1788 | B127: Intérêts courus
A128: 18 | B128: COMPTES DE LIAISON DES ETABLISSEMENTS ET SOCIETES EN PARTICIPATION
A129: 181 | B129: Comptes de liaison des établissements
A130: 186 | B130: Biens et prestations de services échangés entre établissements (charges)
A131: 187 | B131: Biens et prestations de services échangés entre établissements (produits)
A132: 188 | B132: Comptes de liaison des sociétés en participation
A133: 2 | B133: COMPTES D'IMMOBILISATIONS
A134: 20 | B134: IMMOBILISATIONS INCORPORELLES
A135: 201 | B135: Frais d'établissement
A136: 2011 | B136: Frais de constitution
A137: 2012 | B137: Frais de premier établissement
A138: 20121 | B138: Frais de prospection
A139: 20122 | B139: Frais de publicité
A140: 2013 | B140: Frais d'augmentation de capital et d'opérations diverses (fusions, scissions, transformations)
A141: 203 | B141: Frais de recherche et de développement
A142: 205 | B142: Concessions et droit similaires, brevets, licences, marques, procédés, logiciels, droits et valeurs similaires
A143: 206 | B143: Droit au bail
A144: 207 | B144: Fonds commercial
A145: 208 | B145: Autres immobilisations incorporelles
A146: 21 | B146: IMMOBILISATIONS CORPORELLES
A147: 211 | B147: Terrains
A148: 2111 | B148: Terrains nus
A149: 2112 | B149: Terrains aménagés
A150: 2113 | B150: Sous-sols et sur-sols
A151: 2114 | B151: Terrains de gisements
A152: 21141 | B152: Carrières
A153: 2115 | B153: Terrains bâtis
A154: 21151 | B154: Ensembles immobiliers industriels (A, B…)
A155: 21155 | B155: Ensembles immobiliers administratifs et commerciaux (A, B…)
A156: 21158 | B156: Autres ensembles immobiliers
A157: 211581 | B157: - Affectés aux opérations professionnelles (A, B…)
A158: 211588 | B158: - Affectés aux opérations non professionnelles (A, B…)
A159: 2116 | B159: Compte d'ordre sur immobilisations
A160: 212 | B160: Agencements et aménagements de terrains
A161: 213 | B161: Constructions
A162: 2131 | B162: Bâtiments
A163: 21311 | B163: Ensembles immobiliers industriels (A, B…)
A164: 21315 | B164: Ensembles immobiliers administratifs et commerciaux (A, B…)
A165: 21318 | B165: Autres ensembles immobiliers
A166: 213181 | B166: - Affectés aux opérations professionnelles (A, B…)
A167: 213188 | B167: - Affectés aux opérations non professionnelles (A, B…)
A168: 2135 | B168: Installations générales, agencements, aménagements des constructions
A169: 2138 | B169: Ouvrages d'infrastructure
A170: 21381 | B170: Voies de terre
A171: 21382 | B171: Voies de fer
A172: 21383 | B172: Voies d'eau
A173: 21384 | B173: Barrages
A174: 21385 | B174: Pistes d'aérodromes
A175: 214 | B175: Constructions sur sol d'autrui
A176: 215 | B176: Installations techniques, matériels et outillages industriels
A177: 2151 | B177: Installations complexes spécialisées
A178: 21511 | B178: Sur sol propre
A179: 21514 | B179: Sur sol d'autrui
A180: 2153 | B180: Installations à caractère spécifiques
A181: 21531 | B181: Sur sol propre
A182: 21534 | B182: Sur sol d'autrui
A183: 2154 | B183: Matériel industriel
A184: 2155 | B184: Outillage industriel
A185: 2157 | B185: Agencements et aménagements du matériel et outillage industriels
A186: 218 | B186: Autres immobilisations corporelles
A187: 2181 | B187: Installations générales, agencements, aménagements divers
A188: 2182 | B188: Matériel de transport
A189: 2183 | B189: Matériel de bureau et matériel informatique
A190: 2184 | B190: Mobilier
A191: 2185 | B191: Cheptel
A192: 2186 | B192: Emballages récupérables
A193: 22 | B193: IMMOBILISATIONS MISES EN CONCESSION
A194: 21 | B194: IMMOBILISATIONS EN COURS
A195: 231 | B195: Immobilisations corporelles en cours
A196: 2312 | B196: Terrains
A197: 2313 | B197: Constructions
A198: 2315 | B198: Installations techniques, matériels et outillages industriels
A199: 2318 | B199: Autres immobilisations corporelles
A200: 232 | B200: Immobilisations incorporelles en cours
... 778 more rows
